Workbook

Sheet Расчёт расхода
C1: Расчёт расхода газа на жилой дом | G1: 2 | I1: Таблица количества газа потребляемого газовым оборудованием | Q1: Значение коэффициента одновременности К для жилых домов
I2: Наименование | J2: Плита 4 к | K2: Плита 2 к | L2: Плита 4 к | M2: Плита 2 к | N2: АОГВ | O2: Теплопотери | P2: Наименование | Q2: Плита 4 к | R2: Плита 2 к | S2: Плита 4 к | T2: Плита 2 к | U2: АОГВ
A3: №участка | B3: Плита 4 к | C3: Плита 2 к | D3: Плита 4 к | E3: Плита 2 к | F3: АОГВ | G3: Суммарный | L3: и ГПВ | M3: и ГПВ | O3: помещений | S3: и ГПВ | T3: и ГПВ
D4: и ГПВ | E4: и ГПВ | G4: расход газа | O4: КВт
B5: шт | C5: шт | D5: компл. | E5: копмл. | F5: шт. | G5: м3/час
A6: 1 | B6: =36+79+67+32 -> 214 | C6: 0 | D6: 49 | E6: 0 | F6: 1 | G6: =B6*J6*Q6+C6*K6*R6+D6*L6*S6+E6*M6*T6+F6*N6*U6 -> 524.52938 | I6: Расход газа, м3/час | J6: 1.2 | K6: =(2.8*1+0.7*1+35*0.09)*1160/8100 -> 0.952345679 | L6: =J6+2.2 -> 3.4 | M6: =K6+2.02 -> 2.972345679 | N6: =66.89+42.34+23.35+19.89+33.61+32.5+15.58+31.2+36.35+26.54+4.18+6.01+57.48+30.55+10.99 -> 437.46 | O6: 0 | Q6: =IF(B6=0,0,IF(B6=1,1,IF(B6=2,0.65,IF(B6=3,0.45,IF(B6=4,0.35,IF(B6=5,0.29,IF(B6=6,0.28,IF(B6=7,0.28,IF(B6=8,0.36,IF(B6=8,0.265,IF(B6=9,0.258,IF(B6=10,0.254,IF(B6<15,0.254-(0.254-0.24)/5*(B6-10),IF(B6=15,0.24,IF(B6<20,0.24-(0.24-0.235)/5*(B6-15),IF(B6=20,0.235,IF(B6<30,0.235-(0.235-0.231)/10*(B6-20),IF(B6=30,0.231,IF(B6<40,0.231-(0.231-0.227)/10*(B6-30),IF(B6=40,0.227,IF(B6<50,0.227-(0.227-0.223)/10*(B6-40),IF(B6=50,0.223,IF(B6<60,0.223-(0.223-0.22)/10*(B6-50),IF(B6=60,0.22,IF(B6<70,0.22-(0.22-0.217)/10*(B6-60),IF(B6=70,0.217,IF(B6<80,0.217-(0.217-0.214)/10*(B6-70),IF(B6=80,0.214,IF(B6<90,0.214-(0.214-0.212)/10*(B6-80),IF(B6=90,0.212,IF(B6<100,0.212-(0.212-0.21)/10*(B6-90),IF(B6=100,0.21,IF(B6<400,0.21-(0.21-0.18)/300*(B6-100),IF(B6=400,0.18,"дальше нет")))))))))))))))))))))))))))))))))) -> 0.1986 | R6: =IF(C6=0,0,IF(C6=1,1,IF(C6=2,0.84,IF(C6=3,0.73,IF(C6=4,0.59,IF(C6=5,0.48,IF(C6=6,0.41,IF(C6=7,0.36,IF(C6=8,0.32,IF(C6=9,0.289,IF(C6=10,0.263,IF(C6<15,0.263-(0.263-0.242)/5*(C6-10),IF(C6=15,0.242,IF(C6<20,0.242-(0.242-0.23)/5*(C6-15),IF(C6=20,0.23,IF(C6<30,0.23-(0.23-0.218)/10*(C6-20),IF(C6=30,0.218,IF(C6<40,0.218-(0.218-0.213)/10*(C6-30),IF(C6=40,0.213,IF(C6<50,0.213-(0.213-0.21)/10*(C6-40),IF(C6=50,0.21,IF(C6<60,0.21-(0.21-0.207)/10*(C6-50),IF(C6=60,0.207,IF(C6<70,0.207-(0.207-0.205)/10*(C6-60),IF(C6=70,0.205,IF(C6<80,0.205-(0.205-0.204)/10*(C6-70),IF(C6=80,0.204,IF(C6<90,0.204-(0.204-0.203)/10*(C6-80),IF(C6=90,0.203,IF(C6<100,0.203-(0.203-0.202)/10*(C6-90),IF(C6=100,0.202,IF(C6<400,0.202-(0.202-0.17)/300*(C6-100),IF(C6=400,0.17,"дальше нет"))))))))))))))))))))))))))))))))) -> 0 | S6: =IF(D6=0,0,IF(D6=1,0.7,IF(D6=2,0.56,IF(D6=3,0.48,IF(D6=4,0.43,IF(D6=5,0.4,IF(D6=6,0.392,IF(D6=7,0.37,IF(D6=8,0.36,IF(D6=9,0.32,IF(D6=9,0.345,IF(D6=10,0.34,IF(D6<15,0.34-(0.34-0.3)/5*(D6-10),IF(D6=15,0.3,IF(D6<20,0.3-(0.3-0.28)/5*(D6-15),IF(D6=20,0.28,IF(D6<30,0.28-(0.28-0.25)/10*(D6-20),IF(D6=30,0.25,IF(D6<40,0.25-(0.25-0.23)/10*(D6-30),IF(D6=40,0.23,IF(D6<50,0.23-(0.23-0.215)/10*(D6-40),IF(D6=50,0.215,IF(D6<60,0.215-(0.215-0.23)/10*(D6-50),IF(D6=60,0.203,IF(D6<70,0.203-(0.203-0.195)/10*(D6-60),IF(D6=70,0.195,IF(D6<80,0.195-(0.195-0.192)/10*(D6-70),IF(D6=80,0.192,IF(D6<90,0.192-(0.192-0.187)/10*(D6-80),IF(D6=90,0.187,IF(D6<100,0.187-(0.187-0.185)/10*(D6-90),IF(D6=100,0.185,IF(D6<400,0.185-(0.185-0.15)/300*(D6-100),IF(D6=400,0.15,"дальше нет")))))))))))))))))))))))))))))))))) -> 0.2165 | T6: =IF(E6=0,0,IF(E6=1,0.75,IF(E6=2,0.64,IF(E6=3,0.52,IF(E6=4,0.39,IF(E6=5,0.375,IF(E6=6,0.36,IF(E6=7,0.345,IF(E6=8,0.335,IF(E6=9,0.32,IF(E6=10,0.315,IF(E6<15,0.315-(0.315-0.275)/5*(E6-10),IF(E6=15,0.275,IF(E6<20,0.275-(0.275-0.26)/5*(E6-15),IF(E6=20,0.26,IF(E6<30,0.26-(0.26-0.235)/10*(E6-20),IF(E6=30,0.235,IF(E6<40,0.235-(0.235-0.205)/10*(E6-30),IF(E6=40,0.205,IF(E6<50,0.205-(0.205-0.193)/10*(E6-40),IF(E6=50,0.193,IF(E6<60,0.193-(0.193-0.186)/10*(E6-50),IF(E6=60,0.186,IF(E6<70,0.186-(0.186-0.18)/10*(E6-60),IF(E6=70,0.18,IF(E6<80,0.18-(0.18-0.175)/10*(E6-70),IF(E6=80,0.175,IF(E6<90,0.175-(0.175-0.171)/10*(E6-80),IF(E6=90,0.171,IF(E6<100,0.171-(0.171-0.163)/10*(E6-90),IF(E6=100,0.163,IF(E6<400,0.163-(0.163-0.135)/300*(E6-100),IF(E6=400,0.135,"дальше нет"))))))))))))))))))))))))))))))))) -> 0 | U6: 1
A7: 2 | B7: =36+79+67+32 -> 214 | C7: 0 | D7: 27 | E7: 0 | F7: 1 | G7: =B7*J7*Q7+C7*K7*R7+D7*L7*S7+E7*M7*T7+F7*N7*U7 -> 407.95668 | J7: 1.2 | K7: =(2.8*1+0.7*1+35*0.09)*1160/8100 -> 0.952345679 | L7: =J7+2.2 -> 3.4 | M7: =K7+2.02 -> 2.972345679 | N7: =66.89+42.34+23.35+19.89+33.61+32.5+15.58+57.48+30.55+10.99 -> 333.18 | O7: 0 | Q7: =IF(B7=0,0,IF(B7=1,1,IF(B7=2,0.65,IF(B7=3,0.45,IF(B7=4,0.35,IF(B7=5,0.29,IF(B7=6,0.28,IF(B7=7,0.28,IF(B7=8,0.36,IF(B7=8,0.265,IF(B7=9,0.258,IF(B7=10,0.254,IF(B7<15,0.254-(0.254-0.24)/5*(B7-10),IF(B7=15,0.24,IF(B7<20,0.24-(0.24-0.235)/5*(B7-15),IF(B7=20,0.235,IF(B7<30,0.235-(0.235-0.231)/10*(B7-20),IF(B7=30,0.231,IF(B7<40,0.231-(0.231-0.227)/10*(B7-30),IF(B7=40,0.227,IF(B7<50,0.227-(0.227-0.223)/10*(B7-40),IF(B7=50,0.223,IF(B7<60,0.223-(0.223-0.22)/10*(B7-50),IF(B7=60,0.22,IF(B7<70,0.22-(0.22-0.217)/10*(B7-60),IF(B7=70,0.217,IF(B7<80,0.217-(0.217-0.214)/10*(B7-70),IF(B7=80,0.214,IF(B7<90,0.214-(0.214-0.212)/10*(B7-80),IF(B7=90,0.212,IF(B7<100,0.212-(0.212-0.21)/10*(B7-90),IF(B7=100,0.21,IF(B7<400,0.21-(0.21-0.18)/300*(B7-100),IF(B7=400,0.18,"дальше нет")))))))))))))))))))))))))))))))))) -> 0.1986 | R7: =IF(C7=0,0,IF(C7=1,1,IF(C7=2,0.84,IF(C7=3,0.73,IF(C7=4,0.59,IF(C7=5,0.48,IF(C7=6,0.41,IF(C7=7,0.36,IF(C7=8,0.32,IF(C7=9,0.289,IF(C7=10,0.263,IF(C7<15,0.263-(0.263-0.242)/5*(C7-10),IF(C7=15,0.242,IF(C7<20,0.242-(0.242-0.23)/5*(C7-15),IF(C7=20,0.23,IF(C7<30,0.23-(0.23-0.218)/10*(C7-20),IF(C7=30,0.218,IF(C7<40,0.218-(0.218-0.213)/10*(C7-30),IF(C7=40,0.213,IF(C7<50,0.213-(0.213-0.21)/10*(C7-40),IF(C7=50,0.21,IF(C7<60,0.21-(0.21-0.207)/10*(C7-50),IF(C7=60,0.207,IF(C7<70,0.207-(0.207-0.205)/10*(C7-60),IF(C7=70,0.205,IF(C7<80,0.205-(0.205-0.204)/10*(C7-70),IF(C7=80,0.204,IF(C7<90,0.204-(0.204-0.203)/10*(C7-80),IF(C7=90,0.203,IF(C7<100,0.203-(0.203-0.202)/10*(C7-90),IF(C7=100,0.202,IF(C7<400,0.202-(0.202-0.17)/300*(C7-100),IF(C7=400,0.17,"дальше нет"))))))))))))))))))))))))))))))))) -> 0 | S7: =IF(D7=0,0,IF(D7=1,0.7,IF(D7=2,0.56,IF(D7=3,0.48,IF(D7=4,0.43,IF(D7=5,0.4,IF(D7=6,0.392,IF(D7=7,0.37,IF(D7=8,0.36,IF(D7=9,0.32,IF(D7=9,0.345,IF(D7=10,0.34,IF(D7<15,0.34-(0.34-0.3)/5*(D7-10),IF(D7=15,0.3,IF(D7<20,0.3-(0.3-0.28)/5*(D7-15),IF(D7=20,0.28,IF(D7<30,0.28-(0.28-0.25)/10*(D7-20),IF(D7=30,0.25,IF(D7<40,0.25-(0.25-0.23)/10*(D7-30),IF(D7=40,0.23,IF(D7<50,0.23-(0.23-0.215)/10*(D7-40),IF(D7=50,0.215,IF(D7<60,0.215-(0.215-0.23)/10*(D7-50),IF(D7=60,0.203,IF(D7<70,0.203-(0.203-0.195)/10*(D7-60),IF(D7=70,0.195,IF(D7<80,0.195-(0.195-0.192)/10*(D7-70),IF(D7=80,0.192,IF(D7<90,0.192-(0.192-0.187)/10*(D7-80),IF(D7=90,0.187,IF(D7<100,0.187-(0.187-0.185)/10*(D7-90),IF(D7=100,0.185,IF(D7<400,0.185-(0.185-0.15)/300*(D7-100),IF(D7=400,0.15,"дальше нет")))))))))))))))))))))))))))))))))) -> 0.259 | T7: =IF(E7=0,0,IF(E7=1,0.75,IF(E7=2,0.64,IF(E7=3,0.52,IF(E7=4,0.39,IF(E7=5,0.375,IF(E7=6,0.36,IF(E7=7,0.345,IF(E7=8,0.335,IF(E7=9,0.32,IF(E7=10,0.315,IF(E7<15,0.315-(0.315-0.275)/5*(E7-10),IF(E7=15,0.275,IF(E7<20,0.275-(0.275-0.26)/5*(E7-15),IF(E7=20,0.26,IF(E7<30,0.26-(0.26-0.235)/10*(E7-20),IF(E7=30,0.235,IF(E7<40,0.235-(0.235-0.205)/10*(E7-30),IF(E7=40,0.205,IF(E7<50,0.205-(0.205-0.193)/10*(E7-40),IF(E7=50,0.193,IF(E7<60,0.193-(0.193-0.186)/10*(E7-50),IF(E7=60,0.186,IF(E7<70,0.186-(0.186-0.18)/10*(E7-60),IF(E7=70,0.18,IF(E7<80,0.18-(0.18-0.175)/10*(E7-70),IF(E7=80,0.175,IF(E7<90,0.175-(0.175-0.171)/10*(E7-80),IF(E7=90,0.171,IF(E7<100,0.171-(0.171-0.163)/10*(E7-90),IF(E7=100,0.163,IF(E7<400,0.163-(0.163-0.135)/300*(E7-100),IF(E7=400,0.135,"дальше нет"))))))))))))))))))))))))))))))))) -> 0 | U7: 1
A8: 3 | B8: 214 | C8: 0 | D8: 26 | E8: 0 | F8: 1 | G8: 405.1155657 | J8: 1.2 | K8: 0.952345679 | L8: 3.4 | M8: 2.972345679 | N8: =66.89+42.34+23.35+19.89+33.61+32.5+15.58/7*6+57.48+30.55+10.99 -> 330.9542857 | O8: 0 | Q8: 0.1986 | R8: 0 | S8: 0.262 | T8: 0 | U8: 1
A9: 4 | B9: 214 | C9: 0 | D9: 24 | E9: 0 | F9: 1 | G9: 397.1464229 | J9: 1.2 | K9: 0.952345679 | L9: 3.4 | M9: 2.972345679 | N9: =66.89+42.34+23.35+19.89+33.61+32.5+15.58/7*3+57.48+30.55+10.99 -> 324.2771429 | O9: 0 | Q9: 0.1986 | R9: 0 | S9: 0.268 | T9: 0 | U9: 1
A10: 5 | B10: 214 | C10: 0 | D10: 22 | E10: 0 | F10: 1 | G10: 391.3213943 | J10: 1.2 | K10: 0.952345679 | L10: 3.4 | M10: 2.972345679 | N10: =66.89+42.34+23.35+19.89+33.61+32.5+15.58/7*1+57.48+30.55+10.99 -> 319.8257143 | O10: 0 | Q10: 0.1986 | R10: 0 | S10: 0.274 | T10: 0 | U10: 1
A11: 6 | B11: 214 | C11: 0 | D11: 21 | E11: 0 | F11: 1 | G11: 388.37828 | J11: 1.2 | K11: 0.952345679 | L11: 3.4 | M11: 2.972345679 | N11: =66.89+42.34+23.35+19.89+33.61+32.5+15.58/7*0+57.48+30.55+10.99 -> 317.6 | O11: 0 | Q11: 0.1986 | R11: 0 | S11: 0.277 | T11: 0 | U11: 1
A12: 7 | B12: 214 | C12: 0 | D12: 21 | E12: 0 | F12: 1 | G12: 357.82828 | J12: 1.2 | K12: 0.952345679 | L12: 3.4 | M12: 2.972345679 | N12: =66.89+42.34+23.35+19.89+33.61+32.5+15.58/7*0+57.48+30.55*0+10.99 -> 287.05 | O12: 0 | Q12: 0.1986 | R12: 0 | S12: 0.277 | T12: 0 | U12: 1
A13: 8 | B13: =36+79+67+32*0 -> 182 | C13: 0 | D13: 21 | E13: 0 | F13: 1 | G13: 350.90092 | J13: 1.2 | K13: 0.952345679 | L13: 3.4 | M13: 2.972345679 | N13: =66.89+42.34+23.35+19.89+33.61+32.5+15.58/7*0+57.48+30.55*0+10.99 -> 287.05 | O13: 0 | Q13: 0.2018 | R13: 0 | S13: 0.277 | T13: 0 | U13: 1
A14: 9 | B14: =36+79+67+32*0 -> 182 | C14: 0 | D14: 21 | E14: 0 | F14: 1 | G14: 293.42092 | J14: 1.2 | K14: 0.952345679 | L14: 3.4 | M14: 2.972345679 | N14: =66.89+42.34+23.35+19.89+33.61+32.5+15.58/7*0+57.48*0+30.55*0+10.99 -> 229.57 | O14: 0 | Q14: 0.2018 | R14: 0 | S14: 0.277 | T14: 0 | U14: 1
A15: 10 | B15: =36+79+67*0+32*0 -> 115 | C15: 0 | D15: 21 | E15: 0 | F15: 1 | G15: 278.1208 | J15: 1.2 | K15: 0.952345679 | L15: 3.4 | M15: 2.972345679 | N15: =66.89+42.34+23.35+19.89+33.61+32.5+15.58/7*0+57.48*0+30.55*0+10.99 -> 229.57 | O15: 0 | Q15: 0.2085 | R15: 0 | S15: 0.277 | T15: 0 | U15: 1
A16: 11 | B16: =36+79+67*0+32*0 -> 115 | C16: 0 | D16: 21 | E16: 0 | F16: 1 | G16: 211.2308 | J16: 1.2 | K16: 0.952345679 | L16: 3.4 | M16: 2.972345679 | N16: =66.89*0+42.34+23.35+19.89+33.61+32.5+15.58/7*0+57.48*0+30.55*0+10.99 -> 162.68 | O16: 0 | Q16: 0.2085 | R16: 0 | S16: 0.277 | T16: 0 | U16: 1
A17: 12 | B17: =36+79*0+67*0+32*0 -> 36 | C17: 0 | D17: 21 | E17: 0 | F17: 1 | G17: 192.33332 | J17: 1.2 | K17: 0.952345679 | L17: 3.4 | M17: 2.972345679 | N17: =66.89*0+42.34+23.35+19.89+33.61+32.5+15.58/7*0+57.48*0+30.55*0+10.99 -> 162.68 | O17: 0 | Q17: 0.2286 | R17: 0 | S17: 0.277 | T17: 0 | U17: 1
A18: 13 | B18: =36+79*0+67*0+32*0 -> 36 | C18: 0 | D18: 21 | E18: 0 | F18: 1 | G18: 166.67332 | J18: 1.2 | K18: 0.952345679 | L18: 3.4 | M18: 2.972345679 | N18: =66.69*0+42.34+23.35+19.89*0+36.34+34.99+16.7/7*0+57.48*0+30.55*0+10.99*0 -> 137.02 | O18: 0 | Q18: 0.2286 | R18: 0 | S18: 0.277 | T18: 0 | U18: 1
A19: 14 | B19: =36+79*0+67*0+32*0 -> 36 | C19: 0 | D19: 21 | E19: 0 | F19: 1 | G19: 119.11332 | J19: 1.2 | K19: 0.952345679 | L19: 3.4 | M19: 2.972345679 | N19: =66.89*0+42.34*0+23.35+19.89*0+33.61+32.5+15.58/7*0+57.48*0+30.55*0+10.99*0 -> 89.46 | O19: 0 | Q19: 0.2286 | R19: 0 | S19: 0.277 | T19: 0 | U19: 1
A20: 15 | B20: =0*36+0*79+0*67+0*32 -> 0 | C20: 0 | D20: 21 | E20: 0 | F20: 1 | G20: 109.2378 | J20: 1.2 | K20: 0.952345679 | L20: 3.4 | M20: 2.972345679 | N20: =66.89*0+42.34*0+23.35+19.89*0+33.61+32.5+15.58/7*0+57.48*0+30.55*0+10.99*0 -> 89.46 | O20: 0 | Q20: 0 | R20: 0 | S20: 0.277 | T20: 0 | U20: 1
A21: 16 | B21: =0*36+0*79+0*67+0*32 -> 0 | C21: 0 | D21: 21 | E21: 0 | F21: 1 | G21: 85.8878 | J21: 1.2 | K21: 0.952345679 | L21: 3.4 | M21: 2.972345679 | N21: =66.89*0+42.34*0+23.35*0+19.89*0+33.61+32.5+15.58/7*0+57.48*0+30.55*0+10.99*0 -> 66.11 | O21: 0 | Q21: 0 | R21: 0 | S21: 0.277 | T21: 0 | U21: 1
A22: 17 | B22: 0 | C22: 0 | D22: 15 | E22: 0 | F22: 1 | G22: 62.49363636 | J22: 1.2 | K22: 0.952345679 | L22: 3.4 | M22: 2.972345679 | N22: =66.89*0+42.34*0+23.35*0+19.89*0+33.61/11*8+32.5/10*7+15.58/7*0+57.48*0+30.55*0+10.99*0 -> 47.19363636 | O22: 0 | Q22: 0 | R22: 0 | S22: 0.3 | T22: 0 | U22: 1
A23: 18 | B23: 0 | C23: 0 | D23: 14 | E23: 0 | F23: 1 | G23: 58.79898182 | J23: 1.2 | K23: =(2.8*1+0.7*1+35*0.09)*1160/8100 -> 0.952345679 | L23: 3.4 | M23: =K23+2.02 -> 2.972345679 | N23: =66.89*0+42.34*0+23.35*0+19.89*0+33.61/11*7+32.5/10*7+15.58/7*0+57.48*0+30.55*0+10.99*0 -> 44.13818182 | O23: 0 | Q23: 0 | R23: 0 | S23: 0.308 | T23: 0 | U23: 1
A24: 19 | B24: 0 | C24: 0 | D24: 13 | E24: 0 | F24: 1 | G24: 54.85538182 | J24: 1.2 | K24: 0.952345679 | L24: 3.4 | M24: 2.972345679 | N24: =66.89*0+42.34*0+23.35*0+19.89*0+33.61/11*7+32.5/10*6+15.58/7*0+57.48*0+30.55*0+10.99*0 -> 40.88818182 | O24: 0 | Q24: 0 | R24: 0 | S24: 0.316 | T24: 0 | U24: 1
A25: 20 | B25: 0 | C25: 0 | D25: 11 | E25: 0 | F25: 1 | G25: 47.19407273 | J25: 1.2 | K25: 0.952345679 | L25: 3.4 | M25: 2.972345679 | N25: =66.89*0+42.34*0+23.35*0+19.89*0+33.61/11*5+32.5/10*6+15.58/7*0+57.48*0+30.55*0+10.99*0 -> 34.77727273 | O25: 0 | Q25: 0 | R25: 0 | S25: 0.332 | T25: 0 | U25: 1
A26: 21 | B26: 0 | C26: 0 | D26: 9 | E26: 0 | F26: 1 | G26: 38.06927273 | J26: 1.2 | K26: 0.952345679 | L26: 3.4 | M26: 2.972345679 | N26: =66.89*0+42.34*0+23.35*0+19.89*0+33.61/11*5+32.5/10*4+15.58/7*0+57.48*0+30.55*0+10.99*0 -> 28.27727273 | O26: 0 | Q26: 0 | R26: 0 | S26: 0.32 | T26: 0 | U26: 1
A27: 22 | B27: 0 | C27: 0 | D27: 7 | E27: 0 | F27: 1 | G27: 30.97236364 | J27: 1.2 | K27: 0.952345679 | L27: 3.4 | M27: 2.972345679 | N27: =66.89*0+42.34*0+23.35*0+19.89*0+33.61/11*3+32.5/10*4+15.58/7*0+57.48*0+30.55*0+10.99*0 -> 22.16636364 | O27: 0 | Q27: 0 | R27: 0 | S27: 0.37 | T27: 0 | U27: 1
A28: 23 | B28: 0 | C28: 0 | D28: 5 | E28: 0 | F28: 1 | G28: 22.46636364 | J28: 1.2 | K28: 0.952345679 | L28: 3.4 | M28: 2.972345679 | N28: =66.89*0+42.34*0+23.35*0+19.89*0+33.61/11*3+32.5/10*2+15.58/7*0+57.48*0+30.55*0+10.99*0 -> 15.66636364 | O28: 0 | Q28: 0 | R28: 0 | S28: 0.4 | T28: 0 | U28: 1
A29: 24 | B29: 0 | C29: 0 | D29: 3 | E29: 0 | F29: 1 | G29: 17.50690909 | J29: 1.2 | K29: 0.952345679 | L29: 3.4 | M29: 2.972345679 | N29: =66.89*0+42.34*0+23.35*0+19.89*0+33.61/11*2+32.5/10*2+15.58/7*0+57.48*0+30.55*0+10.99*0 -> 12.61090909 | O29: 0 | Q29: 0 | R29: 0 | S29: 0.48 | T29: 0 | U29: 1
A30: 121 | B30: 0 | C30: 0 | D30: 22 | E30: 0 | F30: 1 | G30: 124.7652 | J30: 1.2 | K30: 0.952345679 | L30: 3.4 | M30: 2.972345679 | N30: =6+36.35+26.54+4.18+31.2 -> 104.27 | O30: 0 | Q30: 0 | R30: 0 | S30: 0.274 | T30: 0 | U30: 1
A31: 122 | B31: 0 | C31: 0 | D31: 20 | E31: 0 | F31: 1 | G31: 117.31 | J31: 1.2 | K31: 0.952345679 | L31: 3.4 | M31: 2.972345679 | N31: =6*0+36.35+26.54+4.18+31.2 -> 98.27 | O31: 0 | Q31: 0 | R31: 0 | S31: 0.28 | T31: 0 | U31: 1
A32: 123 | B32: 0 | C32: 0 | D32: 19 | E32: 0 | F32: 1 | G32: 111.4235429 | J32: 1.2 | K32: 0.952345679 | L32: 3.4 | M32: =K32+2.02 -> 2.972345679 | N32: =6*0+36.35/7*6+26.54+4.18+31.2 -> 93.07714286 | O32: 0 | Q32: 0 | R32: 0 | S32: 0.284 | T32: 0 | U32: 1
A33: 124 | B33: 0 | C33: 0 | D33: 18 | E33: 0 | F33: 1 | G33: 105.5098857 | J33: 1.2 | K33: 0.952345679 | L33: 3.4 | M33: 2.972345679 | N33: =6*0+36.35/7*5+26.54+4.18+31.2 -> 87.88428571 | O33: 0 | Q33: 0 | R33: 0 | S33: 0.288 | T33: 0 | U33: 1
A34: 125 | B34: 0 | C34: 0 | D34: 17 | E34: 0 | F34: 1 | G34: 99.56902857 | J34: 1.2 | K34: 0.952345679 | L34: 3.4 | M34: 2.972345679 | N34: =6*0+36.35/7*4+26.54+4.18+31.2 -> 82.69142857 | O34: 0 | Q34: 0 | R34: 0 | S34: 0.292 | T34: 0 | U34: 1
A35: 126 | B35: 0 | C35: 0 | D35: 16 | E35: 0 | F35: 1 | G35: 93.60097143 | J35: 1.2 | K35: 0.952345679 | L35: 3.4 | M35: 2.972345679 | N35: =6*0+36.35/7*3+26.54+4.18+31.2 -> 77.49857143 | O35: 0 | Q35: 0 | R35: 0 | S35: 0.296 | T35: 0 | U35: 1
A36: 127 | B36: 0 | C36: 0 | D36: 15 | E36: 0 | F36: 1 | G36: 87.60571429 | J36: 1.2 | K36: 0.952345679 | L36: 3.4 | M36: 2.972345679 | N36: =6*0+36.35/7*2+26.54+4.18+31.2 -> 72.30571429 | O36: 0 | Q36: 0 | R36: 0 | S36: 0.3 | T36: 0 | U36: 1
A37: 128 | B37: 0 | C37: 0 | D37: 11 | E37: 0 | F37: 1 | G37: 66.49584762 | J37: 1.2 | K37: 0.952345679 | L37: 3.4 | M37: 2.972345679 | N37: =6*0+36.35/7*2+26.54/6*4+4.18*0+31.2/6*5 -> 54.07904762 | O37: 0 | Q37: 0 | R37: 0 | S37: 0.332 | T37: 0 | U37: 1
A38: 129 | B38: 0 | C38: 0 | D38: 10 | E38: 0 | F38: 1 | G38: 60.44619048 | J38: 1.2 | K38: 0.952345679 | L38: 3.4 | M38: 2.972345679 | N38: =6*0+36.35/7*1+26.54/6*4+4.18*0+31.2/6*5 -> 48.88619048 | O38: 0 | Q38: 0 | R38: 0 | S38: 0.34 | T38: 0 | U38: 1
A39: 130 | B39: 0 | C39: 0 | D39: 9 | E39: 0 | F39: 1 | G39: 53.48533333 | J39: 1.2 | K39: 0.952345679 | L39: 3.4 | M39: 2.972345679 | N39: =6*0+36.35/7*0+26.54/6*4+4.18*0+31.2/6*5 -> 43.69333333 | O39: 0 | Q39: 0 | R39: 0 | S39: 0.32 | T39: 0 | U39: 1
A40: 131 | D40: 7 | F40: 1 | G40: 50.838 | J40: 1.2 | K40: 0.952345679 | L40: 3.4 | M40: =K40+2.02 -> 2.972345679 | N40: =6*0+36.35/7*0+26.54/5*4+4.18*0+31.2/6*4 -> 42.032 | O40: 0 | Q40: =IF(B40=0,0,IF(B40=1,1,IF(B40=2,0.65,IF(B40=3,0.45,IF(B40=4,0.35,IF(B40=5,0.29,IF(B40=6,0.28,IF(B40=7,0.28,IF(B40=8,0.36,IF(B40=8,0.265,IF(B40=9,0.258,IF(B40=10,0.254,IF(B40<15,0.254-(0.254-0.24)/5*(B40-10),IF(B40=15,0.24,IF(B40<20,0.24-(0.24-0.235)/5*(B40-15),IF(B40=20,0.235,IF(B40<30,0.235-(0.235-0.231)/10*(B40-20),IF(B40=30,0.231,IF(B40<40,0.231-(0.231-0.227)/10*(B40-30),IF(B40=40,0.227,IF(B40<50,0.227-(0.227-0.223)/10*(B40-40),IF(B40=50,0.223,IF(B40<60,0.223-(0.223-0.22)/10*(B40-50),IF(B40=60,0.22,IF(B40<70,0.22-(0.22-0.217)/10*(B40-60),IF(B40=70,0.217,IF(B40<80,0.217-(0.217-0.214)/10*(B40-70),IF(B40=80,0.214,IF(B40<90,0.214-(0.214-0.212)/10*(B40-80),IF(B40=90,0.212,IF(B40<100,0.212-(0.212-0.21)/10*(B40-90),IF(B40=100,0.21,IF(B40<400,0.21-(0.21-0.18)/300*(B40-100),IF(B40=400,0.18,"дальше нет")))))))))))))))))))))))))))))))))) -> 0 | R40: =IF(C40=0,0,IF(C40=1,1,IF(C40=2,0.84,IF(C40=3,0.73,IF(C40=4,0.59,IF(C40=5,0.48,IF(C40=6,0.41,IF(C40=7,0.36,IF(C40=8,0.32,IF(C40=9,0.289,IF(C40=10,0.263,IF(C40<15,0.263-(0.263-0.242)/5*(C40-10),IF(C40=15,0.242,IF(C40<20,0.242-(0.242-0.23)/5*(C40-15),IF(C40=20,0.23,IF(C40<30,0.23-(0.23-0.218)/10*(C40-20),IF(C40=30,0.218,IF(C40<40,0.218-(0.218-0.213)/10*(C40-30),IF(C40=40,0.213,IF(C40<50,0.213-(0.213-0.21)/10*(C40-40),IF(C40=50,0.21,IF(C40<60,0.21-(0.21-0.207)/10*(C40-50),IF(C40=60,0.207,IF(C40<70,0.207-(0.207-0.205)/10*(C40-60),IF(C40=70,0.205,IF(C40<80,0.205-(0.205-0.204)/10*(C40-70),IF(C40=80,0.204,IF(C40<90,0.204-(0.204-0.203)/10*(C40-80),IF(C40=90,0.203,IF(C40<100,0.203-(0.203-0.202)/10*(C40-90),IF(C40=100,0.202,IF(C40<400,0.202-(0.202-0.17)/300*(C40-100),IF(C40=400,0.17,"дальше нет"))))))))))))))))))))))))))))))))) -> 0 | S40: =IF(D40=0,0,IF(D40=1,0.7,IF(D40=2,0.56,IF(D40=3,0.48,IF(D40=4,0.43,IF(D40=5,0.4,IF(D40=6,0.392,IF(D40=7,0.37,IF(D40=8,0.36,IF(D40=9,0.32,IF(D40=9,0.345,IF(D40=10,0.34,IF(D40<15,0.34-(0.34-0.3)/5*(D40-10),IF(D40=15,0.3,IF(D40<20,0.3-(0.3-0.28)/5*(D40-15),IF(D40=20,0.28,IF(D40<30,0.28-(0.28-0.25)/10*(D40-20),IF(D40=30,0.25,IF(D40<40,0.25-(0.25-0.23)/10*(D40-30),IF(D40=40,0.23,IF(D40<50,0.23-(0.23-0.215)/10*(D40-40),IF(D40=50,0.215,IF(D40<60,0.215-(0.215-0.23)/10*(D40-50),IF(D40=60,0.203,IF(D40<70,0.203-(0.203-0.195)/10*(D40-60),IF(D40=70,0.195,IF(D40<80,0.195-(0.195-0.192)/10*(D40-70),IF(D40=80,0.192,IF(D40<90,0.192-(0.192-0.187)/10*(D40-80),IF(D40=90,0.187,IF(D40<100,0.187-(0.187-0.185)/10*(D40-90),IF(D40=100,0.185,IF(D40<400,0.185-(0.185-0.15)/300*(D40-100),IF(D40=400,0.15,"дальше нет")))))))))))))))))))))))))))))))))) -> 0.37 | T40: =IF(E40=0,0,IF(E40=1,0.75,IF(E40=2,0.64,IF(E40=3,0.52,IF(E40=4,0.39,IF(E40=5,0.375,IF(E40=6,0.36,IF(E40=7,0.345,IF(E40=8,0.335,IF(E40=9,0.32,IF(E40=10,0.315,IF(E40<15,0.315-(0.315-0.275)/5*(E40-10),IF(E40=15,0.275,IF(E40<20,0.275-(0.275-0.26)/5*(E40-15),IF(E40=20,0.26,IF(E40<30,0.26-(0.26-0.235)/10*(E40-20),IF(E40=30,0.235,IF(E40<40,0.235-(0.235-0.205)/10*(E40-30),IF(E40=40,0.205,IF(E40<50,0.205-(0.205-0.193)/10*(E40-40),IF(E40=50,0.193,IF(E40<60,0.193-(0.193-0.186)/10*(E40-50),IF(E40=60,0.186,IF(E40<70,0.186-(0.186-0.18)/10*(E40-60),IF(E40=70,0.18,IF(E40<80,0.18-(0.18-0.175)/10*(E40-70),IF(E40=80,0.175,IF(E40<90,0.175-(0.175-0.171)/10*(E40-80),IF(E40=90,0.171,IF(E40<100,0.171-(0.171-0.163)/10*(E40-90),IF(E40=100,0.163,IF(E40<400,0.163-(0.163-0.135)/300*(E40-100),IF(E40=400,0.135,"дальше нет"))))))))))))))))))))))))))))))))) -> 0 | U40: 1
A41: 132 | D41: 5 | F41: 1 | G41: 33.016 | J41: 1.2 | K41: 0.952345679 | L41: 3.4 | M41: 2.972345679 | N41: =6*0+36.35/7*0+26.54/5*2+4.18*0+31.2/6*3 -> 26.216 | O41: 0 | Q41: 0 | R41: 0 | S41: 0.4 | T41: 0 | U41: 1
A42: 133 | D42: 4 | F42: 1 | G42: 26.864 | J42: 1.2 | K42: 0.952345679 | L42: 3.4 | M42: 2.972345679 | N42: =6*0+36.35/7*0+26.54/5*2+4.18*0+31.2/6*2 -> 21.016 | O42: 0 | Q42: 0 | R42: 0 | S42: 0.43 | T42: 0 | U42: 1
A43: 134 | D43: 2 | F43: 1 | G43: 14.316 | J43: 1.2 | K43: 0.952345679 | L43: 3.4 | M43: 2.972345679 | N43: =6*0+36.35/7*0+26.54/5*1+4.18*0+31.2/6*1 -> 10.508 | O43: 0 | Q43: 0 | R43: 0 | S43: 0.56 | T43: 0 | U43: 1
A44: 201 | D44: 4 | F44: 1 | G44: 25.06966667 | J44: 1.2 | K44: 0.952345679 | L44: 3.4 | M44: =K44+2.02 -> 2.972345679 | N44: =6.5*0+38.09/7*0+28.03/6*2+4.43*1+32.69/6*1 -> 19.22166667 | O44: 0 | Q44: =IF(B44=0,0,IF(B44=1,1,IF(B44=2,0.65,IF(B44=3,0.45,IF(B44=4,0.35,IF(B44=5,0.29,IF(B44=6,0.28,IF(B44=7,0.28,IF(B44=8,0.36,IF(B44=8,0.265,IF(B44=9,0.258,IF(B44=10,0.254,IF(B44<15,0.254-(0.254-0.24)/5*(B44-10),IF(B44=15,0.24,IF(B44<20,0.24-(0.24-0.235)/5*(B44-15),IF(B44=20,0.235,IF(B44<30,0.235-(0.235-0.231)/10*(B44-20),IF(B44=30,0.231,IF(B44<40,0.231-(0.231-0.227)/10*(B44-30),IF(B44=40,0.227,IF(B44<50,0.227-(0.227-0.223)/10*(B44-40),IF(B44=50,0.223,IF(B44<60,0.223-(0.223-0.22)/10*(B44-50),IF(B44=60,0.22,IF(B44<70,0.22-(0.22-0.217)/10*(B44-60),IF(B44=70,0.217,IF(B44<80,0.217-(0.217-0.214)/10*(B44-70),IF(B44=80,0.214,IF(B44<90,0.214-(0.214-0.212)/10*(B44-80),IF(B44=90,0.212,IF(B44<100,0.212-(0.212-0.21)/10*(B44-90),IF(B44=100,0.21,IF(B44<400,0.21-(0.21-0.18)/300*(B44-100),IF(B44=400,0.18,"дальше нет")))))))))))))))))))))))))))))))))) -> 0 | R44: =IF(C44=0,0,IF(C44=1,1,IF(C44=2,0.84,IF(C44=3,0.73,IF(C44=4,0.59,IF(C44=5,0.48,IF(C44=6,0.41,IF(C44=7,0.36,IF(C44=8,0.32,IF(C44=9,0.289,IF(C44=10,0.263,IF(C44<15,0.263-(0.263-0.242)/5*(C44-10),IF(C44=15,0.242,IF(C44<20,0.242-(0.242-0.23)/5*(C44-15),IF(C44=20,0.23,IF(C44<30,0.23-(0.23-0.218)/10*(C44-20),IF(C44=30,0.218,IF(C44<40,0.218-(0.218-0.213)/10*(C44-30),IF(C44=40,0.213,IF(C44<50,0.213-(0.213-0.21)/10*(C44-40),IF(C44=50,0.21,IF(C44<60,0.21-(0.21-0.207)/10*(C44-50),IF(C44=60,0.207,IF(C44<70,0.207-(0.207-0.205)/10*(C44-60),IF(C44=70,0.205,IF(C44<80,0.205-(0.205-0.204)/10*(C44-70),IF(C44=80,0.204,IF(C44<90,0.204-(0.204-0.203)/10*(C44-80),IF(C44=90,0.203,IF(C44<100,0.203-(0.203-0.202)/10*(C44-90),IF(C44=100,0.202,IF(C44<400,0.202-(0.202-0.17)/300*(C44-100),IF(C44=400,0.17,"дальше нет"))))))))))))))))))))))))))))))))) -> 0 | S44: =IF(D44=0,0,IF(D44=1,0.7,IF(D44=2,0.56,IF(D44=3,0.48,IF(D44=4,0.43,IF(D44=5,0.4,IF(D44=6,0.392,IF(D44=7,0.37,IF(D44=8,0.36,IF(D44=9,0.32,IF(D44=9,0.345,IF(D44=10,0.34,IF(D44<15,0.34-(0.34-0.3)/5*(D44-10),IF(D44=15,0.3,IF(D44<20,0.3-(0.3-0.28)/5*(D44-15),IF(D44=20,0.28,IF(D44<30,0.28-(0.28-0.25)/10*(D44-20),IF(D44=30,0.25,IF(D44<40,0.25-(0.25-0.23)/10*(D44-30),IF(D44=40,0.23,IF(D44<50,0.23-(0.23-0.215)/10*(D44-40),IF(D44=50,0.215,IF(D44<60,0.215-(0.215-0.23)/10*(D44-50),IF(D44=60,0.203,IF(D44<70,0.203-(0.203-0.195)/10*(D44-60),IF(D44=70,0.195,IF(D44<80,0.195-(0.195-0.192)/10*(D44-70),IF(D44=80,0.192,IF(D44<90,0.192-(0.192-0.187)/10*(D44-80),IF(D44=90,0.187,IF(D44<100,0.187-(0.187-0.185)/10*(D44-90),IF(D44=100,0.185,IF(D44<400,0.185-(0.185-0.15)/300*(D44-100),IF(D44=400,0.15,"дальше нет")))))))))))))))))))))))))))))))))) -> 0.43 | T44: =IF(E44=0,0,IF(E44=1,0.75,IF(E44=2,0.64,IF(E44=3,0.52,IF(E44=4,0.39,IF(E44=5,0.375,IF(E44=6,0.36,IF(E44=7,0.345,IF(E44=8,0.335,IF(E44=9,0.32,IF(E44=10,0.315,IF(E44<15,0.315-(0.315-0.275)/5*(E44-10),IF(E44=15,0.275,IF(E44<20,0.275-(0.275-0.26)/5*(E44-15),IF(E44=20,0.26,IF(E44<30,0.26-(0.26-0.235)/10*(E44-20),IF(E44=30,0.235,IF(E44<40,0.235-(0.235-0.205)/10*(E44-30),IF(E44=40,0.205,IF(E44<50,0.205-(0.205-0.193)/10*(E44-40),IF(E44=50,0.193,IF(E44<60,0.193-(0.193-0.186)/10*(E44-50),IF(E44=60,0.186,IF(E44<70,0.186-(0.186-0.18)/10*(E44-60),IF(E44=70,0.18,IF(E44<80,0.18-(0.18-0.175)/10*(E44-70),IF(E44=80,0.175,IF(E44<90,0.175-(0.175-0.171)/10*(E44-80),IF(E44=90,0.171,IF(E44<100,0.171-(0.171-0.163)/10*(E44-90),IF(E44=100,0.163,IF(E44<400,0.163-(0.163-0.135)/300*(E44-100),IF(E44=400,0.135,"дальше нет"))))))))))))))))))))))))))))))))) -> 0 | U44: 1
A45: 202 | D45: 3 | F45: 1 | G45: 19.446 | J45: 1.2 | K45: 0.952345679 | L45: 3.4 | M45: 2.972345679 | N45: =6.5*0+38.09/7*0+28.03/6*1+4.43*1+32.69/6*1 -> 14.55 | O45: 0 | Q45: 0 | R45: 0 | S45: 0.48 | T45: 0 | U45: 1
A46: 203 | D46: 2 | F46: 1 | G46: 13.68633333 | J46: 1.2 | K46: 0.952345679 | L46: 3.4 | M46: 2.972345679 | N46: =6.5*0+38.09/7*0+28.03/6*0+4.43+32.69/6*1 -> 9.878333333 | O46: 0 | Q46: 0 | R46: 0 | S46: 0.56 | T46: 0 | U46: 1
A47: 204 | D47: 1 | F47: 1 | G47: 7.828333333 | J47: 1.2 | K47: 0.952345679 | L47: 3.4 | M47: 2.972345679 | N47: =6.5*0+38.09/7*0+28.03/6*0+4.43*0+32.69/6*1 -> 5.448333333 | O47: 0 | Q47: 0 | R47: 0 | S47: 0.7 | T47: 0 | U47: 1
A48: 301 | D48: 6 | F48: 1 | G48: 26.91316364 | J48: 1.2 | K48: 0.952345679 | L48: 3.4 | M48: =K48+2.02 -> 2.972345679 | N48: =66.89*0+42.34*0+23.35*0+19.89*0+33.61/11*3+32.5/10*3+15.58/7*0+57.48*0+30.55*0+10.99*0 -> 18.91636364 | O48: 0 | Q48: =IF(B48=0,0,IF(B48=1,1,IF(B48=2,0.65,IF(B48=3,0.45,IF(B48=4,0.35,IF(B48=5,0.29,IF(B48=6,0.28,IF(B48=7,0.28,IF(B48=8,0.36,IF(B48=8,0.265,IF(B48=9,0.258,IF(B48=10,0.254,IF(B48<15,0.254-(0.254-0.24)/5*(B48-10),IF(B48=15,0.24,IF(B48<20,0.24-(0.24-0.235)/5*(B48-15),IF(B48=20,0.235,IF(B48<30,0.235-(0.235-0.231)/10*(B48-20),IF(B48=30,0.231,IF(B48<40,0.231-(0.231-0.227)/10*(B48-30),IF(B48=40,0.227,IF(B48<50,0.227-(0.227-0.223)/10*(B48-40),IF(B48=50,0.223,IF(B48<60,0.223-(0.223-0.22)/10*(B48-50),IF(B48=60,0.22,IF(B48<70,0.22-(0.22-0.217)/10*(B48-60),IF(B48=70,0.217,IF(B48<80,0.217-(0.217-0.214)/10*(B48-70),IF(B48=80,0.214,IF(B48<90,0.214-(0.214-0.212)/10*(B48-80),IF(B48=90,0.212,IF(B48<100,0.212-(0.212-0.21)/10*(B48-90),IF(B48=100,0.21,IF(B48<400,0.21-(0.21-0.18)/300*(B48-100),IF(B48=400,0.18,"дальше нет")))))))))))))))))))))))))))))))))) -> 0 | R48: =IF(C48=0,0,IF(C48=1,1,IF(C48=2,0.84,IF(C48=3,0.73,IF(C48=4,0.59,IF(C48=5,0.48,IF(C48=6,0.41,IF(C48=7,0.36,IF(C48=8,0.32,IF(C48=9,0.289,IF(C48=10,0.263,IF(C48<15,0.263-(0.263-0.242)/5*(C48-10),IF(C48=15,0.242,IF(C48<20,0.242-(0.242-0.23)/5*(C48-15),IF(C48=20,0.23,IF(C48<30,0.23-(0.23-0.218)/10*(C48-20),IF(C48=30,0.218,IF(C48<40,0.218-(0.218-0.213)/10*(C48-30),IF(C48=40,0.213,IF(C48<50,0.213-(0.213-0.21)/10*(C48-40),IF(C48=50,0.21,IF(C48<60,0.21-(0.21-0.207)/10*(C48-50),IF(C48=60,0.207,IF(C48<70,0.207-(0.207-0.205)/10*(C48-60),IF(C48=70,0.205,IF(C48<80,0.205-(0.205-0.204)/10*(C48-70),IF(C48=80,0.204,IF(C48<90,0.204-(0.204-0.203)/10*(C48-80),IF(C48=90,0.203,IF(C48<100,0.203-(0.203-0.202)/10*(C48-90),IF(C48=100,0.202,IF(C48<400,0.202-(0.202-0.17)/300*(C48-100),IF(C48=400,0.17,"дальше нет"))))))))))))))))))))))))))))))))) -> 0 | S48: =IF(D48=0,0,IF(D48=1,0.7,IF(D48=2,0.56,IF(D48=3,0.48,IF(D48=4,0.43,IF(D48=5,0.4,IF(D48=6,0.392,IF(D48=7,0.37,IF(D48=8,0.36,IF(D48=9,0.32,IF(D48=9,0.345,IF(D48=10,0.34,IF(D48<15,0.34-(0.34-0.3)/5*(D48-10),IF(D48=15,0.3,IF(D48<20,0.3-(0.3-0.28)/5*(D48-15),IF(D48=20,0.28,IF(D48<30,0.28-(0.28-0.25)/10*(D48-20),IF(D48=30,0.25,IF(D48<40,0.25-(0.25-0.23)/10*(D48-30),IF(D48=40,0.23,IF(D48<50,0.23-(0.23-0.215)/10*(D48-40),IF(D48=50,0.215,IF(D48<60,0.215-(0.215-0.23)/10*(D48-50),IF(D48=60,0.203,IF(D48<70,0.203-(0.203-0.195)/10*(D48-60),IF(D48=70,0.195,IF(D48<80,0.195-(0.195-0.192)/10*(D48-70),IF(D48=80,0.192,IF(D48<90,0.192-(0.192-0.187)/10*(D48-80),IF(D48=90,0.187,IF(D48<100,0.187-(0.187-0.185)/10*(D48-90),IF(D48=100,0.185,IF(D48<400,0.185-(0.185-0.15)/300*(D48-100),IF(D48=400,0.15,"дальше нет")))))))))))))))))))))))))))))))))) -> 0.392 | T48: =IF(E48=0,0,IF(E48=1,0.75,IF(E48=2,0.64,IF(E48=3,0.52,IF(E48=4,0.39,IF(E48=5,0.375,IF(E48=6,0.36,IF(E48=7,0.345,IF(E48=8,0.335,IF(E48=9,0.32,IF(E48=10,0.315,IF(E48<15,0.315-(0.315-0.275)/5*(E48-10),IF(E48=15,0.275,IF(E48<20,0.275-(0.275-0.26)/5*(E48-15),IF(E48=20,0.26,IF(E48<30,0.26-(0.26-0.235)/10*(E48-20),IF(E48=30,0.235,IF(E48<40,0.235-(0.235-0.205)/10*(E48-30),IF(E48=40,0.205,IF(E48<50,0.205-(0.205-0.193)/10*(E48-40),IF(E48=50,0.193,IF(E48<60,0.193-(0.193-0.186)/10*(E48-50),IF(E48=60,0.186,IF(E48<70,0.186-(0.186-0.18)/10*(E48-60),IF(E48=70,0.18,IF(E48<80,0.18-(0.18-0.175)/10*(E48-70),IF(E48=80,0.175,IF(E48<90,0.175-(0.175-0.171)/10*(E48-80),IF(E48=90,0.171,IF(E48<100,0.171-(0.171-0.163)/10*(E48-90),IF(E48=100,0.163,IF(E48<400,0.163-(0.163-0.135)/300*(E48-100),IF(E48=400,0.135,"дальше нет"))))))))))))))))))))))))))))))))) -> 0 | U48: 1
A49: 302 | D49: 5 | F49: 1 | G49: 22.66090909 | J49: 1.2 | K49: 0.952345679 | L49: 3.4 | M49: 2.972345679 | N49: =66.89*0+42.34*0+23.35*0+19.89*0+33.61/11*2+32.5/10*3+15.58/7*0+57.48*0+30.55*0+10.99*0 -> 15.86090909 | O49: 0 | Q49: 0 | R49: 0 | S49: 0.4 | T49: 0 | U49: 1
A50: 303 | D50: 4 | F50: 1 | G50: 18.45890909 | J50: 1.2 | K50: 0.952345679 | L50: 3.4 | M50: 2.972345679 | N50: =66.89*0+42.34*0+23.35*0+19.89*0+33.61/11*2+32.5/10*2+15.58/7*0+57.48*0+30.55*0+10.99*0 -> 12.61090909 | O50: 0 | Q50: 0 | R50: 0 | S50: 0.43 | T50: 0 | U50: 1
A51: 304 | D51: 3 | F51: 1 | G51: 14.45145455 | J51: 1.2 | K51: 0.952345679 | L51: 3.4 | M51: 2.972345679 | N51: =66.89*0+42.34*0+23.35*0+19.89*0+33.61/11*1+32.5/10*2+15.58/7*0+57.48*0+30.55*0+10.99*0 -> 9.555454545 | O51: 0 | Q51: 0 | R51: 0 | S51: 0.48 | T51: 0 | U51: 1
A52: 305 | D52: 2 | F52: 1 | G52: 10.11345455 | J52: 1.2 | K52: 0.952345679 | L52: 3.4 | M52: 2.972345679 | N52: =66.89*0+42.34*0+23.35*0+19.89*0+33.61/11*1+32.5/10*1+15.58/7*0+57.48*0+30.55*0+10.99*0 -> 6.305454545 | O52: 0 | Q52: 0 | R52: 0 | S52: 0.56 | T52: 0 | U52: 1
A53: 306 | D53: 1 | F53: 1 | G53: 5.63 | J53: 1.2 | K53: 0.952345679 | L53: 3.4 | M53: 2.972345679 | N53: =66.89*0+42.34*0+23.35*0+19.89*0+33.61/11*0+32.5/10*1+15.58/7*0+57.48*0+30.55*0+10.99*0 -> 3.25 | O53: 0 | Q53: 0 | R53: 0 | S53: 0.7 | T53: 0 | U53: 1
A54: 401 | F54: 1 | G54: 30.88 | J54: 1.2 | K54: 0.952345679 | L54: 3.4 | M54: 2.972345679 | N54: =19.89+10.99 -> 30.88 | O54: 0 | Q54: 0 | R54: 0 | S54: 0 | T54: 0 | U54: 1
A55: 402 | F55: 1 | G55: 10.99 | J55: 1.2 | K55: 0.952345679 | L55: 3.4 | M55: 2.972345679 | N55: 10.99 | O55: 0 | Q55: 0 | R55: 0 | S55: 0 | T55: 0 | U55: 1

Sheet Гидравлический расчёт
C1: 0.0007 | E1: 0.73 | G1: 1.4e-05 | I1: Для полиэтилена SDR11 | M1: Протяжённость магистрали 1 | P1: 783.75 | Q1: 1043 | S1: удельная потеря давл. | V1: =1200/Q1 -> 1.150527325
C2: Начальное давление, Па | E2: 3000 | M2: Протяжённость магистрали 2 | Q2: =SUM(G35:G47)*1.1+G11*1.1 -> 469.777 | S2: то же | V2: =1200/Q2 -> 2.554403472
M3: Протяженность магистрали 3 | Q3: =SUM(G49:G52)*1.1+SUM(G11:G26)*1.1 -> 710.6 | S3: то же | V3: =1200/Q3 -> 1.688713763
G4: Уличные сети | M4: Протяжённость магистрали 4 | Q4: =SUM(G53:G58)*1.1+SUM(G11:G26)*1.1 -> 719.95 | S4: то же | V4: =1200/Q4 -> 1.666782415
G5: Местные сопротивления учитываются К= | K5: 1.1 | M5: Протяжённость магистрали 5 | Q5: =SUM(G11:G22)*1.1+SUM(G59:G60)*1.1 -> 551.87 | S5: то же | V5: =1200/Q5 -> 2.174425136
A6: Расчётный | C6: Принятый | D6: Днхs | E6: Расчётный | G6: Действительная | I6: Сумма коэффиц. | K6: Эквивалентная | M6: Расчётная длина | O6: Потеря давления , Па | S6: Давление
A7: участок | C7: диаметр | D7: мм | E7: расход газа | G7: длина участка | I7: местных | K7: длина участка, м | M7: участка, м. | S7: в конце участка
C8: газопровода, см | E8: на участке, | G8: по чертежу, м | I8: сопротивлений | K8: ld | M8: l | O8: На 1 метр длины | Q8: На всём участке | S8: , Па
C9: dу | E9: кбм/час | O9: газопровода
A11: ='Расчёт расхода'!A6 -> 1 | B11: м | C11: =IF(W11<=1.4,1.4,IF(W11<=1.9,1.4,IF(W11<=2.6,1.9,IF(W11<=3.26,2.6,IF(W11<=4.08,3.26,IF(W11<=5.14,4.08,IF(W11<=6.14,5.14,IF(W11<=7.36,6.14,IF(W11<=9,7.36,IF(W11<=10.22,9,IF(W11<=11.46,10.22,IF(W11<=13.08,11.46,IF(W11<=14.72,13.08,IF(W11<=16.36,14.72,IF(W11<=18.4,16.36,IF(W11<=20.46,18.4,IF(W11<=25.78,20.46,"25.78"))))))))))))))))) -> 18.4 | D11: =IF(C11=1.4,"20х3",IF(C11=1.9,"25х3",IF(C11=2.6,"32х3",IF(C11=3.26,"40х3.7",IF(C11=4.08,"50х4.6",IF(C11=5.14,"63х5.8",IF(C11=6.14,"75х6.8",IF(C11=7.36,"90х8.2",IF(C11=9,"110х10",IF(C11=10.22,"125х11.4",IF(C11=11.46,"140х12.7",IF(C11=13.08,"160х14.6",IF(C11=14.72,"180х16.4",IF(C11=16.36,"200х18.2",IF(C11=18.4,"225х20.5",IF(C11=20.46,"250х22.7",IF(С19=25.78,"315х28.6","Далее нет. Переходите на сталь"))))))))))))))))) -> 225х20.5 | E11: ='Расчёт расхода'!G6 -> 524.52938 | G11: 12 | I11: 0 | K11: =IF(A11=0,0,IF($U11<=2000,64/$U11,IF($U11<=4000,0.0025*$U11^0.333,IF(AND($U11<=100000,$V11>=23),0.11*($C$1/C11+68/$U11)^0.25,IF(AND($U11<=100000,$V11<23),0.3164/$U11^0.25,IF(AND($U11>100000,$V11>=23),0.11*($C$1/$C11+68/$U11)^0.25,IF(AND($U11>100000,$V11<23),1/(1.82*LOG10($U11)-1.64)^2,"нарушены условия ")))))))^-1*C11*I11/100+IF(I11=0,IF(B11="м",0.1*G11,IF(B11="с",0.2*G11,IF(AND(B11="п",G11<=3),G11*4.5,IF(AND(B11="п",G11<=4),G11*3,IF(AND(B11="п",G11<=7),G11*1.2,IF(AND(B11="п",G11<=12),G11*0.5,0))))))) -> 1.2 | M11: =IF(I11=0,G11+K11,G11+I11*K11) -> 13.2 | O11: =IF(E11=0,0,IF($U11<=2000,64/$U11,IF($U11<=4000,0.0025*$U11^0.333,IF(AND($U11<=100000,$V11>=23),0.11*($C$1/C11+68/$U11)^0.25,IF(AND($U11<=100000,$V11<23),0.3164/$U11^0.25,IF(AND($U11>100000,$V11>=23),0.11*($C$1/$C11+68/$U11)^0.25,IF(AND($U11>100000,$V11<23),1/(1.82*LOG10($U11)-1.64)^2,"нарушены условия ")))))))*626.1*$E11^2/$C11^5*$E$1 -> 1.151321874 | Q11: =M11*O11 -> 15.19744874 | S11: =E2-Q11 -> 2984.802551 | U11: =0.0354*E11/C11/$G$1 -> 72082.06542 | V11: =$C$1/C11 -> 3.804347826e-05 | W11: =(626*0.0446*$E$1*E11^1.75*$Q$1/1200)^(1/4.75) -> 18.40042491 | X11: =IF(W11<=14.8,14.8,IF(W11<=20.5,20.5,IF(W11<=25.5,25.5,IF(W11<=30.5,30.5,6666)))) -> 20.5
A12: ='Расчёт расхода'!A7 -> 2 | B12: м | C12: =IF(W12<=1.4,1.4,IF(W12<=1.9,1.4,IF(W12<=2.6,1.9,IF(W12<=3.26,2.6,IF(W12<=4.08,3.26,IF(W12<=5.14,4.08,IF(W12<=6.14,5.14,IF(W12<=7.36,6.14,IF(W12<=9,7.36,IF(W12<=10.22,9,IF(W12<=11.46,10.22,IF(W12<=13.08,11.46,IF(W12<=14.72,13.08,IF(W12<=16.36,14.72,IF(W12<=18.4,16.36,IF(W12<=20.46,18.4,IF(W12<=25.78,20.46,"25.78"))))))))))))))))) -> 16.36 | D12: =IF(C12=1.4,"20х3",IF(C12=1.9,"25х3",IF(C12=2.6,"32х3",IF(C12=3.26,"40х3.7",IF(C12=4.08,"50х4.6",IF(C12=5.14,"63х5.8",IF(C12=6.14,"75х6.8",IF(C12=7.36,"90х8.2",IF(C12=9,"110х10",IF(C12=10.22,"125х11.4",IF(C12=11.46,"140х12.7",IF(C12=13.08,"160х14.6",IF(C12=14.72,"180х16.4",IF(C12=16.36,"200х18.2",IF(C12=18.4,"225х20.5",IF(C12=20.46,"250х22.7",IF(С19=25.78,"315х28.6","Далее нет. Переходите на сталь"))))))))))))))))) -> 200х18.2 | E12: ='Расчёт расхода'!G7 -> 407.95668 | G12: 12 | I12: 0 | K12: =IF(A12=0,0,IF($U12<=2000,64/$U12,IF($U12<=4000,0.0025*$U12^0.333,IF(AND($U12<=100000,$V12>=23),0.11*($C$1/C12+68/$U12)^0.25,IF(AND($U12<=100000,$V12<23),0.3164/$U12^0.25,IF(AND($U12>100000,$V12>=23),0.11*($C$1/$C12+68/$U12)^0.25,IF(AND($U12>100000,$V12<23),1/(1.82*LOG10($U12)-1.64)^2,"нарушены условия ")))))))^-1*C12*I12/100+IF(I12=0,IF(B12="м",0.1*G12,IF(B12="с",0.2*G12,IF(AND(B12="п",G12<=3),G12*4.5,IF(AND(B12="п",G12<=4),G12*3,IF(AND(B12="п",G12<=7),G12*1.2,IF(AND(B12="п",G12<=12),G12*0.5,0))))))) -> 1.2 | M12: =IF(I12=0,G12+K12,G12+I12*K12) -> 13.2 | O12: =IF(AND(C12=0,E12=0),0,IF(U12>=2000,IF(U12>4000,69*($C$1/C12+1922*$G$1*C12/E12)^0.25*E12^2*$E$1/C12^5,0.516*E12^2.333*$E$1/C12^5.333/$G$1^0.333),1132000*E12*$G$1*$E$1/C12^4)) -> 1.309086089 | Q12: 17.27993637 | S12: =IF(A12-A11=1,S11-Q12,Q12) -> 2967.522615 | U12: =0.0354*E12/C12/$G$1 -> 63053.0321 | V12: =$C$1/C12 -> 4.278728606e-05 | W12: =(626*0.0446*$E$1*E12^1.75*$Q$1/1200)^(1/4.75) -> 16.77307034 | X12: 20.5
A13: ='Расчёт расхода'!A8 -> 3 | B13: м | C13: 16.36 | D13: =IF(C13=1.4,"20х3",IF(C13=1.9,"25х3",IF(C13=2.6,"32х3",IF(C13=3.26,"40х3.7",IF(C13=4.08,"50х4.6",IF(C13=5.14,"63х5.8",IF(C13=6.14,"75х6.8",IF(C13=7.36,"90х8.2",IF(C13=9,"110х10",IF(C13=10.22,"125х11.4",IF(C13=11.46,"140х12.7",IF(C13=13.08,"160х14.6",IF(C13=14.72,"180х16.4",IF(C13=16.36,"200х18.2",IF(C13=18.4,"225х20.5",IF(C13=20.46,"250х22.7",IF(С19=25.78,"315х28.6","Далее нет. Переходите на сталь"))))))))))))))))) -> 200х18.2 | E13: ='Расчёт расхода'!G8 -> 405.1155657 | G13: 25.7 | I13: 0 | K13: 2.57 | M13: 28.27 | O13: 1.293087484 | Q13: 36.55558316 | S13: =IF(A13-A12=1,S12-Q13,Q13) -> 2930.967032 | U13: 62613.91471 | V13: 4.278728606e-05 | W13: 16.72993936 | X13: 20.5
A14: ='Расчёт расхода'!A9 -> 4 | B14: м | C14: 16.36 | D14: =IF(C14=1.4,"20х3",IF(C14=1.9,"25х3",IF(C14=2.6,"32х3",IF(C14=3.26,"40х3.7",IF(C14=4.08,"50х4.6",IF(C14=5.14,"63х5.8",IF(C14=6.14,"75х6.8",IF(C14=7.36,"90х8.2",IF(C14=9,"110х10",IF(C14=10.22,"125х11.4",IF(C14=11.46,"140х12.7",IF(C14=13.08,"160х14.6",IF(C14=14.72,"180х16.4",IF(C14=16.36,"200х18.2",IF(C14=18.4,"225х20.5",IF(C14=20.46,"250х22.7",IF(С19=25.78,"315х28.6","Далее нет. Переходите на сталь"))))))))))))))))) -> 200х18.2 | E14: ='Расчёт расхода'!G9 -> 397.1464229 | G14: 26.1 | I14: 0 | K14: 2.61 | M14: 28.71 | O14: 1.248669444 | Q14: 35.84929972 | S14: 2895.117732 | U14: 61382.21869 | V14: 4.278728606e-05 | W14: 16.60793088 | X14: 20.5
A15: ='Расчёт расхода'!A10 -> 5 | B15: м | C15: 16.36 | D15: =IF(C15=1.4,"20х3",IF(C15=1.9,"25х3",IF(C15=2.6,"32х3",IF(C15=3.26,"40х3.7",IF(C15=4.08,"50х4.6",IF(C15=5.14,"63х5.8",IF(C15=6.14,"75х6.8",IF(C15=7.36,"90х8.2",IF(C15=9,"110х10",IF(C15=10.22,"125х11.4",IF(C15=11.46,"140х12.7",IF(C15=13.08,"160х14.6",IF(C15=14.72,"180х16.4",IF(C15=16.36,"200х18.2",IF(C15=18.4,"225х20.5",IF(C15=20.46,"250х22.7",IF(С19=25.78,"315х28.6","Далее нет. Переходите на сталь"))))))))))))))))) -> 200х18.2 | E15: ='Расчёт расхода'!G10 -> 391.3213943 | G15: 25.8 | I15: 0 | K15: 2.58 | M15: 28.38 | O15: 1.21662972 | Q15: 34.52795145 | S15: 2860.589781 | U15: 60481.91302 | V15: 4.278728606e-05 | W15: 16.51776745 | X15: 20.5
A16: ='Расчёт расхода'!A11 -> 6 | B16: м | C16: 16.36 | D16: =IF(C16=1.4,"20х3",IF(C16=1.9,"25х3",IF(C16=2.6,"32х3",IF(C16=3.26,"40х3.7",IF(C16=4.08,"50х4.6",IF(C16=5.14,"63х5.8",IF(C16=6.14,"75х6.8",IF(C16=7.36,"90х8.2",IF(C16=9,"110х10",IF(C16=10.22,"125х11.4",IF(C16=11.46,"140х12.7",IF(C16=13.08,"160х14.6",IF(C16=14.72,"180х16.4",IF(C16=16.36,"200х18.2",IF(C16=18.4,"225х20.5",IF(C16=20.46,"250х22.7",IF(С19=25.78,"315х28.6","Далее нет. Переходите на сталь"))))))))))))))))) -> 200х18.2 | E16: ='Расчёт расхода'!G11 -> 388.37828 | G16: 68.8 | I16: 0 | K16: 6.88 | M16: 75.68 | O16: 1.200579282 | Q16: 90.85984009 | S16: 2769.72994 | U16: 60027.0307 | V16: 4.278728606e-05 | W16: 16.47188952 | X16: 20.5
A17: ='Расчёт расхода'!A12 -> 7 | B17: м | C17: 14.72 | D17: =IF(C17=1.4,"20х3",IF(C17=1.9,"25х3",IF(C17=2.6,"32х3",IF(C17=3.26,"40х3.7",IF(C17=4.08,"50х4.6",IF(C17=5.14,"63х5.8",IF(C17=6.14,"75х6.8",IF(C17=7.36,"90х8.2",IF(C17=9,"110х10",IF(C17=10.22,"125х11.4",IF(C17=11.46,"140х12.7",IF(C17=13.08,"160х14.6",IF(C17=14.72,"180х16.4",IF(C17=16.36,"200х18.2",IF(C17=18.4,"225х20.5",IF(C17=20.46,"250х22.7",IF(С19=25.78,"315х28.6","Далее нет. Переходите на сталь"))))))))))))))))) -> 180х16.4 | E17: ='Расчёт расхода'!G12 -> 357.82828 | G17: 10 | I17: 0 | K17: 1 | M17: 11 | O17: 1.720195848 | Q17: 18.92215433 | S17: 2750.807786 | U17: 61467.0085 | V17: 4.755434783e-05 | W17: 15.98213884 | X17: 20.5
A18: ='Расчёт расхода'!A13 -> 8 | B18: м | C18: 14.72 | D18: =IF(C18=1.4,"20х3",IF(C18=1.9,"25х3",IF(C18=2.6,"32х3",IF(C18=3.26,"40х3.7",IF(C18=4.08,"50х4.6",IF(C18=5.14,"63х5.8",IF(C18=6.14,"75х6.8",IF(C18=7.36,"90х8.2",IF(C18=9,"110х10",IF(C18=10.22,"125х11.4",IF(C18=11.46,"140х12.7",IF(C18=13.08,"160х14.6",IF(C18=14.72,"180х16.4",IF(C18=16.36,"200х18.2",IF(C18=18.4,"225х20.5",IF(C18=20.46,"250х22.7",IF(С19=25.78,"315х28.6","Далее нет. Переходите на сталь"))))))))))))))))) -> 180х16.4 | E18: ='Расчёт расхода'!G13 -> 350.90092 | G18: 17.7 | I18: 0 | K18: 1.77 | M18: 19.47 | O18: 1.662009529 | Q18: 32.35932553 | S18: 2718.448461 | U18: 60277.0408 | V18: 4.755434783e-05 | W18: 15.86744303 | X18: 20.5
A19: ='Расчёт расхода'!A14 -> 9 | B19: м | C19: 14.72 | D19: =IF(C19=1.4,"20х3",IF(C19=1.9,"25х3",IF(C19=2.6,"32х3",IF(C19=3.26,"40х3.7",IF(C19=4.08,"50х4.6",IF(C19=5.14,"63х5.8",IF(C19=6.14,"75х6.8",IF(C19=7.36,"90х8.2",IF(C19=9,"110х10",IF(C19=10.22,"125х11.4",IF(C19=11.46,"140х12.7",IF(C19=13.08,"160х14.6",IF(C19=14.72,"180х16.4",IF(C19=16.36,"200х18.2",IF(C19=18.4,"225х20.5",IF(C19=20.46,"250х22.7",IF(С19=25.78,"315х28.6","Далее нет. Переходите на сталь"))))))))))))))))) -> 180х16.4 | E19: ='Расчёт расхода'!G14 -> 293.42092 | G19: 60.5 | I19: 0 | K19: 6.05 | M19: 66.55 | O19: 1.213245323 | Q19: 80.74147622 | S19: 2637.706984 | U19: 50403.24422 | V19: 4.755434783e-05 | W19: 14.85535558 | X19: 20.5
A20: ='Расчёт расхода'!A15 -> 10 | B20: м | C20: 13.08 | D20: =IF(C20=1.4,"20х3",IF(C20=1.9,"25х3",IF(C20=2.6,"32х3",IF(C20=3.26,"40х3.7",IF(C20=4.08,"50х4.6",IF(C20=5.14,"63х5.8",IF(C20=6.14,"75х6.8",IF(C20=7.36,"90х8.2",IF(C20=9,"110х10",IF(C20=10.22,"125х11.4",IF(C20=11.46,"140х12.7",IF(C20=13.08,"160х14.6",IF(C20=14.72,"180х16.4",IF(C20=16.36,"200х18.2",IF(C20=18.4,"225х20.5",IF(C20=20.46,"250х22.7",IF(С19=25.78,"315х28.6","Далее нет. Переходите на сталь"))))))))))))))))) -> 160х14.6 | E20: ='Расчёт расхода'!G15 -> 278.1208 | G20: 59.4 | I20: 0 | K20: 5.94 | M20: 65.34 | O20: 1.939372377 | Q20: 126.7185911 | S20: 2510.988393 | U20: 53765.16121 | V20: 5.351681957e-05 | W20: 14.56513319 | X20: 14.8
A21: ='Расчёт расхода'!A16 -> 11 | B21: м | C21: 13.08 | D21: =IF(C21=1.4,"20х3",IF(C21=1.9,"25х3",IF(C21=2.6,"32х3",IF(C21=3.26,"40х3.7",IF(C21=4.08,"50х4.6",IF(C21=5.14,"63х5.8",IF(C21=6.14,"75х6.8",IF(C21=7.36,"90х8.2",IF(C21=9,"110х10",IF(C21=10.22,"125х11.4",IF(C21=11.46,"140х12.7",IF(C21=13.08,"160х14.6",IF(C21=14.72,"180х16.4",IF(C21=16.36,"200х18.2",IF(C21=18.4,"225х20.5",IF(C21=20.46,"250х22.7",IF(С19=25.78,"315х28.6","Далее нет. Переходите на сталь"))))))))))))))))) -> 160х14.6 | E21: ='Расчёт расхода'!G16 -> 211.2308 | G21: 39.4 | I21: 0 | K21: 3.94 | M21: 43.34 | O21: 1.19539962 | Q21: 51.80861952 | S21: 2459.179774 | U21: 40834.26343 | V21: 5.351681957e-05 | W21: 13.16124287 | X21: 14.8
A22: ='Расчёт расхода'!A17 -> 12 | B22: м | C22: 11.46 | D22: =IF(C22=1.4,"20х3",IF(C22=1.9,"25х3",IF(C22=2.6,"32х3",IF(C22=3.26,"40х3.7",IF(C22=4.08,"50х4.6",IF(C22=5.14,"63х5.8",IF(C22=6.14,"75х6.8",IF(C22=7.36,"90х8.2",IF(C22=9,"110х10",IF(C22=10.22,"125х11.4",IF(C22=11.46,"140х12.7",IF(C22=13.08,"160х14.6",IF(C22=14.72,"180х16.4",IF(C22=16.36,"200х18.2",IF(C22=18.4,"225х20.5",IF(C22=20.46,"250х22.7",IF(С19=25.78,"315х28.6","Далее нет. Переходите на сталь"))))))))))))))))) -> 140х12.7 | E22: ='Расчёт расхода'!G17 -> 192.33332 | G22: 31 | I22: 0 | K22: 3.1 | M22: 34.1 | O22: 1.904015075 | Q22: 64.92691406 | S22: 2394.25286 | U22: 42437.04518 | V22: 6.108202443e-05 | W22: 12.71455504 | X22: 14.8
A23: ='Расчёт расхода'!A18 -> 13 | B23: м | C23: 11.46 | D23: =IF(C23=1.4,"20х3",IF(C23=1.9,"25х3",IF(C23=2.6,"32х3",IF(C23=3.26,"40х3.7",IF(C23=4.08,"50х4.6",IF(C23=5.14,"63х5.8",IF(C23=6.14,"75х6.8",IF(C23=7.36,"90х8.2",IF(C23=9,"110х10",IF(C23=10.22,"125х11.4",IF(C23=11.46,"140х12.7",IF(C23=13.08,"160х14.6",IF(C23=14.72,"180х16.4",IF(C23=16.36,"200х18.2",IF(C23=18.4,"225х20.5",IF(C23=20.46,"250х22.7",IF(С19=25.78,"315х28.6","Далее нет. Переходите на сталь"))))))))))))))))) -> 140х12.7 | E23: ='Расчёт расхода'!G18 -> 166.67332 | G23: 46.5 | I23: 0 | K23: 4.65 | M23: 51.15 | O23: 1.480156706 | Q23: 75.71001552 | S23: =IF(A23-A22=1,S22-Q23,S11) -> 2318.542844 | U23: 36775.33987 | V23: 6.108202443e-05 | W23: 12.06117544 | X23: 14.8
A24: ='Расчёт расхода'!A19 -> 14 | B24: м | C24: 10.22 | D24: =IF(C24=1.4,"20х3",IF(C24=1.9,"25х3",IF(C24=2.6,"32х3",IF(C24=3.26,"40х3.7",IF(C24=4.08,"50х4.6",IF(C24=5.14,"63х5.8",IF(C24=6.14,"75х6.8",IF(C24=7.36,"90х8.2",IF(C24=9,"110х10",IF(C24=10.22,"125х11.4",IF(C24=11.46,"140х12.7",IF(C24=13.08,"160х14.6",IF(C24=14.72,"180х16.4",IF(C24=16.36,"200х18.2",IF(C24=18.4,"225х20.5",IF(C24=20.46,"250х22.7",IF(С19=25.78,"315х28.6","Далее нет. Переходите на сталь"))))))))))))))))) -> 125х11.4 | E24: ='Расчёт расхода'!G19 -> 119.11332 | G24: 31.1 | I24: 0 | K24: 3.11 | M24: 34.21 | O24: 1.41532226 | Q24: 48.4181745 | S24: 2270.12467 | U24: 29470.30702 | V24: 6.849315068e-05 | W24: 10.65699795 | X24: 14.8
A25: ='Расчёт расхода'!A20 -> 15 | B25: м | C25: 10.22 | D25: =IF(C25=1.4,"20х3",IF(C25=1.9,"25х3",IF(C25=2.6,"32х3",IF(C25=3.26,"40х3.7",IF(C25=4.08,"50х4.6",IF(C25=5.14,"63х5.8",IF(C25=6.14,"75х6.8",IF(C25=7.36,"90х8.2",IF(C25=9,"110х10",IF(C25=10.22,"125х11.4",IF(C25=11.46,"140х12.7",IF(C25=13.08,"160х14.6",IF(C25=14.72,"180х16.4",IF(C25=16.36,"200х18.2",IF(C25=18.4,"225х20.5",IF(C25=20.46,"250х22.7",IF(С19=25.78,"315х28.6","Далее нет. Переходите на сталь"))))))))))))))))) -> 125х11.4 | E25: ='Расчёт расхода'!G20 -> 109.2378 | G25: 53.4 | I25: 0 | K25: 5.34 | M25: 58.74 | O25: 1.215675724 | Q25: 71.408792 | S25: 2198.715878 | U25: 27026.96477 | V25: 6.849315068e-05 | W25: 10.3225477 | X25: 14.8
A26: ='Расчёт расхода'!A21 -> 16 | B26: м | C26: 9 | D26: =IF(C26=1.4,"20х3",IF(C26=1.9,"25х3",IF(C26=2.6,"32х3",IF(C26=3.26,"40х3.7",IF(C26=4.08,"50х4.6",IF(C26=5.14,"63х5.8",IF(C26=6.14,"75х6.8",IF(C26=7.36,"90х8.2",IF(C26=9,"110х10",IF(C26=10.22,"125х11.4",IF(C26=11.46,"140х12.7",IF(C26=13.08,"160х14.6",IF(C26=14.72,"180х16.4",IF(C26=16.36,"200х18.2",IF(C26=18.4,"225х20.5",IF(C26=20.46,"250х22.7",IF(С19=25.78,"315х28.6","Далее нет. Переходите на сталь"))))))))))))))))) -> 110х10 | E26: ='Расчёт расхода'!G21 -> 85.8878 | G26: 23.2 | I26: 0 | K26: 2.32 | M26: 25.52 | O26: 1.459905839 | Q26: 37.25679702 | S26: 2161.459081 | U26: 24130.3819 | V26: 7.777777778e-05 | W26: 9.447316465 | X26: 14.8
A27: ='Расчёт расхода'!A22 -> 17 | B27: м | C27: 7.36 | D27: =IF(C27=1.4,"20х3",IF(C27=1.9,"25х3",IF(C27=2.6,"32х3",IF(C27=3.26,"40х3.7",IF(C27=4.08,"50х4.6",IF(C27=5.14,"63х5.8",IF(C27=6.14,"75х6.8",IF(C27=7.36,"90х8.2",IF(C27=9,"110х10",IF(C27=10.22,"125х11.4",IF(C27=11.46,"140х12.7",IF(C27=13.08,"160х14.6",IF(C27=14.72,"180х16.4",IF(C27=16.36,"200х18.2",IF(C27=18.4,"225х20.5",IF(C27=20.46,"250х22.7",IF(С19=25.78,"315х28.6","Далее нет. Переходите на сталь"))))))))))))))))) -> 90х8.2 | E27: ='Расчёт расхода'!G22 -> 62.49363636 | G27: 54.7 | I27: 0 | K27: 5.47 | M27: 60.17 | O27: 2.177187916 | Q27: 131.0013969 | S27: 2030.457684 | U27: 21470.05752 | V27: 9.510869565e-05 | W27: 8.402936987 | X27: 14.8
A28: ='Расчёт расхода'!A23 -> 18 | B28: м | C28: 7.36 | D28: =IF(C28=1.4,"20х3",IF(C28=1.9,"25х3",IF(C28=2.6,"32х3",IF(C28=3.26,"40х3.7",IF(C28=4.08,"50х4.6",IF(C28=5.14,"63х5.8",IF(C28=6.14,"75х6.8",IF(C28=7.36,"90х8.2",IF(C28=9,"110х10",IF(C28=10.22,"125х11.4",IF(C28=11.46,"140х12.7",IF(C28=13.08,"160х14.6",IF(C28=14.72,"180х16.4",IF(C28=16.36,"200х18.2",IF(C28=18.4,"225х20.5",IF(C28=20.46,"250х22.7",IF(С19=25.78,"315х28.6","Далее нет. Переходите на сталь"))))))))))))))))) -> 90х8.2 | E28: ='Расчёт расхода'!G23 -> 58.79898182 | G28: 25.4 | I28: 0 | K28: 2.54 | M28: 27.94 | O28: 1.956109843 | Q28: 54.65370902 | S28: 1975.803975 | U28: 20200.73715 | V28: 9.510869565e-05 | W28: 8.216379282 | X28: 14.8
A29: ='Расчёт расхода'!A24 -> 19 | B29: м | C29: 7.36 | D29: =IF(C29=1.4,"20х3",IF(C29=1.9,"25х3",IF(C29=2.6,"32х3",IF(C29=3.26,"40х3.7",IF(C29=4.08,"50х4.6",IF(C29=5.14,"63х5.8",IF(C29=6.14,"75х6.8",IF(C29=7.36,"90х8.2",IF(C29=9,"110х10",IF(C29=10.22,"125х11.4",IF(C29=11.46,"140х12.7",IF(C29=13.08,"160х14.6",IF(C29=14.72,"180х16.4",IF(C29=16.36,"200х18.2",IF(C29=18.4,"225х20.5",IF(C29=20.46,"250х22.7",IF(С19=25.78,"315х28.6","Далее нет. Переходите на сталь"))))))))))))))))) -> 90х8.2 | E29: ='Расчёт расхода'!G24 -> 54.85538182 | G29: 14.8 | I29: 0 | K29: 1.48 | M29: 16.28 | O29: 1.73152828 | Q29: 28.18928039 | S29: 1947.614694 | U29: 18845.8901 | V29: 9.510869565e-05 | W29: 8.00889088 | X29: 14.8
A30: ='Расчёт расхода'!A25 -> 20 | B30: м | C30: 7.36 | D30: =IF(C30=1.4,"20х3",IF(C30=1.9,"25х3",IF(C30=2.6,"32х3",IF(C30=3.26,"40х3.7",IF(C30=4.08,"50х4.6",IF(C30=5.14,"63х5.8",IF(C30=6.14,"75х6.8",IF(C30=7.36,"90х8.2",IF(C30=9,"110х10",IF(C30=10.22,"125х11.4",IF(C30=11.46,"140х12.7",IF(C30=13.08,"160х14.6",IF(C30=14.72,"180х16.4",IF(C30=16.36,"200х18.2",IF(C30=18.4,"225х20.5",IF(C30=20.46,"250х22.7",IF(С19=25.78,"315х28.6","Далее нет. Переходите на сталь"))))))))))))))))) -> 90х8.2 | E30: ='Расчёт расхода'!G25 -> 47.19407273 | G30: 15.2 | I30: 0 | K30: 1.52 | M30: 16.72 | O30: 1.329563383 | Q30: 22.23029977 | S30: 1925.384395 | U30: 16213.80216 | V30: 9.510869565e-05 | W30: 7.577095684 | X30: 14.8
A31: ='Расчёт расхода'!A26 -> 21 | B31: м | C31: 6.14 | D31: =IF(C31=1.4,"20х3",IF(C31=1.9,"25х3",IF(C31=2.6,"32х3",IF(C31=3.26,"40х3.7",IF(C31=4.08,"50х4.6",IF(C31=5.14,"63х5.8",IF(C31=6.14,"75х6.8",IF(C31=7.36,"90х8.2",IF(C31=9,"110х10",IF(C31=10.22,"125х11.4",IF(C31=11.46,"140х12.7",IF(C31=13.08,"160х14.6",IF(C31=14.72,"180х16.4",IF(C31=16.36,"200х18.2",IF(C31=18.4,"225х20.5",IF(C31=20.46,"250х22.7",IF(С19=25.78,"315х28.6","Далее нет. Переходите на сталь"))))))))))))))))) -> 75х6.8 | E31: ='Расчёт расхода'!G26 -> 38.06927273 | G31: 15.7 | I31: 0 | K31: 1.57 | M31: 17.27 | O31: 2.16104311 | Q31: 37.3212145 | S31: 1888.06318 | U31: 15677.66699 | V31: 0.0001140065147 | W31: 7.000423968 | X31: 14.8
A32: ='Расчёт расхода'!A27 -> 22 | B32: м | C32: 6.14 | D32: =IF(C32=1.4,"20х3",IF(C32=1.9,"25х3",IF(C32=2.6,"32х3",IF(C32=3.26,"40х3.7",IF(C32=4.08,"50х4.6",IF(C32=5.14,"63х5.8",IF(C32=6.14,"75х6.8",IF(C32=7.36,"90х8.2",IF(C32=9,"110х10",IF(C32=10.22,"125х11.4",IF(C32=11.46,"140х12.7",IF(C32=13.08,"160х14.6",IF(C32=14.72,"180х16.4",IF(C32=16.36,"200х18.2",IF(C32=18.4,"225х20.5",IF(C32=20.46,"250х22.7",IF(С19=25.78,"315х28.6","Далее нет. Переходите на сталь"))))))))))))))))) -> 75х6.8 | E32: ='Расчёт расхода'!G27 -> 30.97236364 | G32: 14.1 | K32: 1.41 | M32: 15.51 | O32: 1.504331982 | Q32: 23.33218904 | S32: 1864.730991 | U32: 12755.02179 | V32: 0.0001140065147 | W32: 6.488043183 | X32: 14.8
A33: ='Расчёт расхода'!A28 -> 23 | B33: м | C33: 5.14 | D33: =IF(C33=1.4,"20х3",IF(C33=1.9,"25х3",IF(C33=2.6,"32х3",IF(C33=3.26,"40х3.7",IF(C33=4.08,"50х4.6",IF(C33=5.14,"63х5.8",IF(C33=6.14,"75х6.8",IF(C33=7.36,"90х8.2",IF(C33=9,"110х10",IF(C33=10.22,"125х11.4",IF(C33=11.46,"140х12.7",IF(C33=13.08,"160х14.6",IF(C33=14.72,"180х16.4",IF(C33=16.36,"200х18.2",IF(C33=18.4,"225х20.5",IF(C33=20.46,"250х22.7",IF(С19=25.78,"315х28.6","Далее нет. Переходите на сталь"))))))))))))))))) -> 63х5.8 | E33: ='Расчёт расхода'!G28 -> 22.46636364 | G33: 14.6 | K33: 1.46 | M33: 16.06 | O33: 1.995839161 | Q33: 32.05317693 | S33: 1832.677814 | U33: 11052.10218 | V33: 0.0001361867704 | W33: 5.764219675 | X33: 14.8
A34: ='Расчёт расхода'!A29 -> 24 | B34: м | C34: 5.14 | D34: =IF(C34=1.4,"20х3",IF(C34=1.9,"25х3",IF(C34=2.6,"32х3",IF(C34=3.26,"40х3.7",IF(C34=4.08,"50х4.6",IF(C34=5.14,"63х5.8",IF(C34=6.14,"75х6.8",IF(C34=7.36,"90х8.2",IF(C34=9,"110х10",IF(C34=10.22,"125х11.4",IF(C34=11.46,"140х12.7",IF(C34=13.08,"160х14.6",IF(C34=14.72,"180х16.4",IF(C34=16.36,"200х18.2",IF(C34=18.4,"225х20.5",IF(C34=20.46,"250х22.7",IF(С19=25.78,"315х28.6","Далее нет. Переходите на сталь"))))))))))))))))) -> 63х5.8 | E34: ='Расчёт расхода'!G29 -> 17.50690909 | G34: 15.4 | K34: 1.54 | M34: 16.94 | O34: 1.288367537 | Q34: 21.82494607 | S34: 1810.852868 | U34: 8612.348274 | V34: 0.0001361867704 | W34: 5.258137474 | X34: 14.8
A35: ='Расчёт расхода'!A30 -> 121 | B35: м | C35: 9 | D35: =IF(C35=1.4,"20х3",IF(C35=1.9,"25х3",IF(C35=2.6,"32х3",IF(C35=3.26,"40х3.7",IF(C35=4.08,"50х4.6",IF(C35=5.14,"63х5.8",IF(C35=6.14,"75х6.8",IF(C35=7.36,"90х8.2",IF(C35=9,"110х10",IF(C35=10.22,"125х11.4",IF(C35=11.46,"140х12.7",IF(C35=13.08,"160х14.6",IF(C35=14.72,"180х16.4",IF(C35=16.36,"200х18.2",IF(C35=18.4,"225х20.5",IF(C35=20.46,"250х22.7",IF(С19=25.78,"315х28.6","Далее нет. Переходите на сталь"))))))))))))))))) -> 110х10 | E35: ='Расчёт расхода'!G30 -> 124.7652 | G35: =3.47+6.17+98.91 -> 108.55 | K35: 10.855 | M35: 119.405 | O35: 2.814619232 | Q35: 336.0796094 | S35: =S12-Q35 -> 2631.443006 | U35: 35053.08 | V35: 7.777777778e-05 | W35: =(626*0.0446*$E$1*E35^1.75*$Q$2/1200)^(1/4.75) -> 9.164897348 | X35: 14.8
A36: ='Расчёт расхода'!A31 -> 122 | B36: м | C36: 7.36 | D36: =IF(C36=1.4,"20х3",IF(C36=1.9,"25х3",IF(C36=2.6,"32х3",IF(C36=3.26,"40х3.7",IF(C36=4.08,"50х4.6",IF(C36=5.14,"63х5.8",IF(C36=6.14,"75х6.8",IF(C36=7.36,"90х8.2",IF(C36=9,"110х10",IF(C36=10.22,"125х11.4",IF(C36=11.46,"140х12.7",IF(C36=13.08,"160х14.6",IF(C36=14.72,"180х16.4",IF(C36=16.36,"200х18.2",IF(C36=18.4,"225х20.5",IF(C36=20.46,"250х22.7",IF(С19=25.78,"315х28.6","Далее нет. Переходите на сталь"))))))))))))))))) -> 90х8.2 | E36: ='Расчёт расхода'!G31 -> 117.31 | G36: =2.01+41.05 -> 43.06 | K36: 4.306 | M36: 47.366 | O36: 6.595681142 | Q36: 312.411033 | S36: 2319.031973 | U36: 40302.5427 | V36: 9.510869565e-05 | W36: =(626*0.0446*$E$1*E36^1.75*$Q$2/1200)^(1/4.75) -> 8.959200073 | X36: 14.8
A37: ='Расчёт расхода'!A32 -> 123 | B37: м | C37: 7.36 | D37: =IF(C37=1.4,"20х3",IF(C37=1.9,"25х3",IF(C37=2.6,"32х3",IF(C37=3.26,"40х3.7",IF(C37=4.08,"50х4.6",IF(C37=5.14,"63х5.8",IF(C37=6.14,"75х6.8",IF(C37=7.36,"90х8.2",IF(C37=9,"110х10",IF(C37=10.22,"125х11.4",IF(C37=11.46,"140х12.7",IF(C37=13.08,"160х14.6",IF(C37=14.72,"180х16.4",IF(C37=16.36,"200х18.2",IF(C37=18.4,"225х20.5",IF(C37=20.46,"250х22.7",IF(С19=25.78,"315х28.6","Далее нет. Переходите на сталь"))))))))))))))))) -> 90х8.2 | E37: ='Расчёт расхода'!G32 -> 111.4235429 | G37: 31.43 | K37: 3.143 | M37: 34.573 | O37: 6.023405165 | Q37: 208.2471868 | S37: 2110.784786 | U37: 38280.21562 | V37: 9.510869565e-05 | W37: 8.790873911 | X37: 14.8
A38: ='Расчёт расхода'!A33 -> 124 | B38: м | C38: 7.36 | D38: =IF(C38=1.4,"20х3",IF(C38=1.9,"25х3",IF(C38=2.6,"32х3",IF(C38=3.26,"40х3.7",IF(C38=4.08,"50х4.6",IF(C38=5.14,"63х5.8",IF(C38=6.14,"75х6.8",IF(C38=7.36,"90х8.2",IF(C38=9,"110х10",IF(C38=10.22,"125х11.4",IF(C38=11.46,"140х12.7",IF(C38=13.08,"160х14.6",IF(C38=14.72,"180х16.4",IF(C38=16.36,"200х18.2",IF(C38=18.4,"225х20.5",IF(C38=20.46,"250х22.7",IF(С19=25.78,"315х28.6","Далее нет. Переходите на сталь"))))))))))))))))) -> 90х8.2 | E38: ='Расчёт расхода'!G33 -> 105.5098857 | G38: 70.64 | K38: 7.064 | M38: 77.704 | O38: 5.471448637 | Q38: 425.1534449 | S38: 1685.631341 | U38: 36248.54381 | V38: 9.510869565e-05 | W38: 8.616014804 | X38: 14.8
A39: ='Расчёт расхода'!A34 -> 125 | B39: м | C39: 7.36 | D39: =IF(C39=1.4,"20х3",IF(C39=1.9,"25х3",IF(C39=2.6,"32х3",IF(C39=3.26,"40х3.7",IF(C39=4.08,"50х4.6",IF(C39=5.14,"63х5.8",IF(C39=6.14,"75х6.8",IF(C39=7.36,"90х8.2",IF(C39=9,"110х10",IF(C39=10.22,"125х11.4",IF(C39=11.46,"140х12.7",IF(C39=13.08,"160х14.6",IF(C39=14.72,"180х16.4",IF(C39=16.36,"200х18.2",IF(C39=18.4,"225х20.5",IF(C39=20.46,"250х22.7",IF(С19=25.78,"315х28.6","Далее нет. Переходите на сталь"))))))))))))))))) -> 90х8.2 | E39: ='Расчёт расхода'!G34 -> 99.56902857 | G39: 17.55 | K39: 1.755 | M39: 19.305 | O39: 4.940393636 | Q39: 95.37429915 | S39: 1590.257042 | U39: 34207.52728 | V39: 9.510869565e-05 | W39: 8.434001817 | X39: 14.8
A40: ='Расчёт расхода'!A35 -> 126 | B40: м | C40: 7.36 | D40: =IF(C40=1.4,"20х3",IF(C40=1.9,"25х3",IF(C40=2.6,"32х3",IF(C40=3.26,"40х3.7",IF(C40=4.08,"50х4.6",IF(C40=5.14,"63х5.8",IF(C40=6.14,"75х6.8",IF(C40=7.36,"90х8.2",IF(C40=9,"110х10",IF(C40=10.22,"125х11.4",IF(C40=11.46,"140х12.7",IF(C40=13.08,"160х14.6",IF(C40=14.72,"180х16.4",IF(C40=16.36,"200х18.2",IF(C40=18.4,"225х20.5",IF(C40=20.46,"250х22.7",IF(С19=25.78,"315х28.6","Далее нет. Переходите на сталь"))))))))))))))))) -> 90х8.2 | E40: ='Расчёт расхода'!G35 -> 93.60097143 | G40: 17.4 | K40: 1.74 | M40: 19.14 | O40: 4.43085271 | Q40: 84.80652087 | S40: 1505.450521 | U40: 32157.16604 | V40: 9.510869565e-05 | W40: 8.244110936 | X40: 14.8
A41: ='Расчёт расхода'!A36 -> 127 | B41: м | C41: 7.36 | D41: =IF(C41=1.4,"20х3",IF(C41=1.9,"25х3",IF(C41=2.6,"32х3",IF(C41=3.26,"40х3.7",IF(C41=4.08,"50х4.6",IF(C41=5.14,"63х5.8",IF(C41=6.14,"75х6.8",IF(C41=7.36,"90х8.2",IF(C41=9,"110х10",IF(C41=10.22,"125х11.4",IF(C41=11.46,"140х12.7",IF(C41=13.08,"160х14.6",IF(C41=14.72,"180х16.4",IF(C41=16.36,"200х18.2",IF(C41=18.4,"225х20.5",IF(C41=20.46,"250х22.7",IF(С19=25.78,"315х28.6","Далее нет. Переходите на сталь"))))))))))))))))) -> 90х8.2 | E41: ='Расчёт расхода'!G36 -> 87.60571429 | G41: 11.2 | K41: 1.12 | M41: 12.32 | O41: 3.943473104 | Q41: 48.58358864 | S41: 1456.866932 | U41: 30097.46007 | V41: 9.510869565e-05 | W41: 8.045489787 | X41: 14.8
A42: ='Расчёт расхода'!A37 -> 128 | B42: м | C42: 6.14 | D42: =IF(C42=1.4,"20х3",IF(C42=1.9,"25х3",IF(C42=2.6,"32х3",IF(C42=3.26,"40х3.7",IF(C42=4.08,"50х4.6",IF(C42=5.14,"63х5.8",IF(C42=6.14,"75х6.8",IF(C42=7.36,"90х8.2",IF(C42=9,"110х10",IF(C42=10.22,"125х11.4",IF(C42=11.46,"140х12.7",IF(C42=13.08,"160х14.6",IF(C42=14.72,"180х16.4",IF(C42=16.36,"200х18.2",IF(C42=18.4,"225х20.5",IF(C42=20.46,"250х22.7",IF(С19=25.78,"315х28.6","Далее нет. Переходите на сталь"))))))))))))))))) -> 75х6.8 | E42: ='Расчёт расхода'!G37 -> 66.49584762 | G42: 7.6 | K42: 0.76 | M42: 8.36 | O42: 5.762407773 | Q42: 48.17372898 | S42: 1408.693203 | U42: 27384.28345 | V42: 0.0001140065147 | W42: 7.268395009 | X42: 14.8
A43: ='Расчёт расхода'!A38 -> 129 | B43: м | C43: 6.14 | D43: =IF(C43=1.4,"20х3",IF(C43=1.9,"25х3",IF(C43=2.6,"32х3",IF(C43=3.26,"40х3.7",IF(C43=4.08,"50х4.6",IF(C43=5.14,"63х5.8",IF(C43=6.14,"75х6.8",IF(C43=7.36,"90х8.2",IF(C43=9,"110х10",IF(C43=10.22,"125х11.4",IF(C43=11.46,"140х12.7",IF(C43=13.08,"160х14.6",IF(C43=14.72,"180х16.4",IF(C43=16.36,"200х18.2",IF(C43=18.4,"225х20.5",IF(C43=20.46,"250х22.7",IF(С19=25.78,"315х28.6","Далее нет. Переходите на сталь"))))))))))))))))) -> 75х6.8 | E43: ='Расчёт расхода'!G38 -> 60.44619048 | G43: 16.5 | K43: 1.65 | M43: 18.15 | O43: 4.871637605 | Q43: 88.42022253 | S43: 1320.272981 | U43: 24892.91697 | V43: 0.0001140065147 | W43: 7.017403703 | X43: 14.8
A44: ='Расчёт расхода'!A39 -> 130 | B44: м | C44: 6.14 | D44: =IF(C44=1.4,"20х3",IF(C44=1.9,"25х3",IF(C44=2.6,"32х3",IF(C44=3.26,"40х3.7",IF(C44=4.08,"50х4.6",IF(C44=5.14,"63х5.8",IF(C44=6.14,"75х6.8",IF(C44=7.36,"90х8.2",IF(C44=9,"110х10",IF(C44=10.22,"125х11.4",IF(C44=11.46,"140х12.7",IF(C44=13.08,"160х14.6",IF(C44=14.72,"180х16.4",IF(C44=16.36,"200х18.2",IF(C44=18.4,"225х20.5",IF(C44=20.46,"250х22.7",IF(С19=25.78,"315х28.6","Далее нет. Переходите на сталь"))))))))))))))))) -> 75х6.8 | E44: ='Расчёт расхода'!G39 -> 53.48533333 | G44: 32 | K44: 3.2 | M44: 35.2 | O44: 3.928151988 | Q44: 138.27095 | S44: 1182.002031 | U44: 22026.3006 | V44: 0.0001140065147 | W44: 6.708117996 | X44: 14.8
A45: ='Расчёт расхода'!A40 -> 131 | B45: м | C45: 6.14 | D45: =IF(C45=1.4,"20х3",IF(C45=1.9,"25х3",IF(C45=2.6,"32х3",IF(C45=3.26,"40х3.7",IF(C45=4.08,"50х4.6",IF(C45=5.14,"63х5.8",IF(C45=6.14,"75х6.8",IF(C45=7.36,"90х8.2",IF(C45=9,"110х10",IF(C45=10.22,"125х11.4",IF(C45=11.46,"140х12.7",IF(C45=13.08,"160х14.6",IF(C45=14.72,"180х16.4",IF(C45=16.36,"200х18.2",IF(C45=18.4,"225х20.5",IF(C45=20.46,"250х22.7",IF(С19=25.78,"315х28.6","Далее нет. Переходите на сталь"))))))))))))))))) -> 75х6.8 | E45: ='Расчёт расхода'!G40 -> 50.838 | G45: 15.87 | K45: 1.587 | M45: 17.457 | O45: 3.592658154 | Q45: 62.7170334 | S45: 1119.284997 | U45: 20936.07725 | V45: 0.0001140065147 | W45: 6.583826697 | X45: 14.8
A46: ='Расчёт расхода'!A41 -> 132 | B46: м | C46: 5.14 | D46: =IF(C46=1.4,"20х3",IF(C46=1.9,"25х3",IF(C46=2.6,"32х3",IF(C46=3.26,"40х3.7",IF(C46=4.08,"50х4.6",IF(C46=5.14,"63х5.8",IF(C46=6.14,"75х6.8",IF(C46=7.36,"90х8.2",IF(C46=9,"110х10",IF(C46=10.22,"125х11.4",IF(C46=11.46,"140х12.7",IF(C46=13.08,"160х14.6",IF(C46=14.72,"180х16.4",IF(C46=16.36,"200х18.2",IF(C46=18.4,"225х20.5",IF(C46=20.46,"250х22.7",IF(С19=25.78,"315х28.6","Далее нет. Переходите на сталь"))))))))))))))))) -> 63х5.8 | E46: ='Расчёт расхода'!G41 -> 33.016 | G46: 19.87 | K46: 1.987 | M46: 21.857 | O46: 3.924721442 | Q46: 85.78263656 | S46: 1033.502361 | U46: 16241.88994 | V46: 0.0001361867704 | W46: 5.615813882 | X46: 14.8
A47: ='Расчёт расхода'!A42 -> 133 | B47: м | C47: 5.14 | D47: =IF(C47=1.4,"20х3",IF(C47=1.9,"25х3",IF(C47=2.6,"32х3",IF(C47=3.26,"40х3.7",IF(C47=4.08,"50х4.6",IF(C47=5.14,"63х5.8",IF(C47=6.14,"75х6.8",IF(C47=7.36,"90х8.2",IF(C47=9,"110х10",IF(C47=10.22,"125х11.4",IF(C47=11.46,"140х12.7",IF(C47=13.08,"160х14.6",IF(C47=14.72,"180х16.4",IF(C47=16.36,"200х18.2",IF(C47=18.4,"225х20.5",IF(C47=20.46,"250х22.7",IF(С19=25.78,"315х28.6","Далее нет. Переходите на сталь"))))))))))))))))) -> 63х5.8 | E47: ='Расчёт расхода'!G42 -> 26.864 | G47: 23.4 | K47: 2.34 | M47: 25.74 | O47: 2.731812299 | Q47: 70.31684858 | S47: 963.1855122 | U47: 13215.47526 | V47: 0.0001361867704 | W47: 5.204981728 | X47: 14.8
A48: 134 | B48: м | C48: 4.08 | D48: =IF(C48=1.4,"20х3",IF(C48=1.9,"25х3",IF(C48=2.6,"32х3",IF(C48=3.26,"40х3.7",IF(C48=4.08,"50х4.6",IF(C48=5.14,"63х5.8",IF(C48=6.14,"75х6.8",IF(C48=7.36,"90х8.2",IF(C48=9,"110х10",IF(C48=10.22,"125х11.4",IF(C48=11.46,"140х12.7",IF(C48=13.08,"160х14.6",IF(C48=14.72,"180х16.4",IF(C48=16.36,"200х18.2",IF(C48=18.4,"225х20.5",IF(C48=20.46,"250х22.7",IF(С19=25.78,"315х28.6","Далее нет. Переходите на сталь"))))))))))))))))) -> 50х4.6 | E48: ='Расчёт расхода'!G43 -> 14.316 | G48: 25.43 | K48: 2.543 | M48: 27.973 | O48: 2.717044784 | Q48: 76.00389373 | S48: 887.1816185 | U48: 8872.310924 | V48: 0.0001715686275 | W48: =(626*0.0446*$E$1*E48^1.75*$Q$2/1200)^(1/4.75) -> 4.127733851 | X48: 14.8
A49: 201 | C49: 5.14 | D49: =IF(C49=1.4,"20х3",IF(C49=1.9,"25х3",IF(C49=2.6,"32х3",IF(C49=3.26,"40х3.7",IF(C49=4.08,"50х4.6",IF(C49=5.14,"63х5.8",IF(C49=6.14,"75х6.8",IF(C49=7.36,"90х8.2",IF(C49=9,"110х10",IF(C49=10.22,"125х11.4",IF(C49=11.46,"140х12.7",IF(C49=13.08,"160х14.6",IF(C49=14.72,"180х16.4",IF(C49=16.36,"200х18.2",IF(C49=18.4,"225х20.5",IF(C49=20.46,"250х22.7",IF(С19=25.78,"315х28.6","Далее нет. Переходите на сталь"))))))))))))))))) -> 63х5.8 | E49: ='Расчёт расхода'!G44 -> 25.06966667 | G49: 10.6 | K49: 1.06 | M49: 11.66 | O49: 2.419497063 | Q49: 28.21133575 | S49: =S41-Q49 -> 1428.655596 | U49: 12332.77098 | V49: 0.0001361867704 | W49: =(626*0.0446*$E$1*E49^1.75*$Q$3/1200)^(1/4.75) -> 5.536012348 | X49: 14.8
A50: 202 | C50: 4.08 | D50: =IF(C50=1.4,"20х3",IF(C50=1.9,"25х3",IF(C50=2.6,"32х3",IF(C50=3.26,"40х3.7",IF(C50=4.08,"50х4.6",IF(C50=5.14,"63х5.8",IF(C50=6.14,"75х6.8",IF(C50=7.36,"90х8.2",IF(C50=9,"110х10",IF(C50=10.22,"125х11.4",IF(C50=11.46,"140х12.7",IF(C50=13.08,"160х14.6",IF(C50=14.72,"180х16.4",IF(C50=16.36,"200х18.2",IF(C50=18.4,"225х20.5",IF(C50=20.46,"250х22.7",IF(С19=25.78,"315х28.6","Далее нет. Переходите на сталь"))))))))))))))))) -> 50х4.6 | E50: ='Расчёт расхода'!G45 -> 19.446 | G50: 38.3 | K50: 3.83 | M50: 42.13 | O50: 4.652751971 | Q50: 196.0204406 | S50: 1232.635156 | U50: 12051.61765 | V50: 0.0001715686275 | W50: =(626*0.0446*$E$1*E50^1.75*$Q$3/1200)^(1/4.75) -> 5.041426896 | X50: 14.8
A51: 203 | C51: 4.08 | D51: =IF(C51=1.4,"20х3",IF(C51=1.9,"25х3",IF(C51=2.6,"32х3",IF(C51=3.26,"40х3.7",IF(C51=4.08,"50х4.6",IF(C51=5.14,"63х5.8",IF(C51=6.14,"75х6.8",IF(C51=7.36,"90х8.2",IF(C51=9,"110х10",IF(C51=10.22,"125х11.4",IF(C51=11.46,"140х12.7",IF(C51=13.08,"160х14.6",IF(C51=14.72,"180х16.4",IF(C51=16.36,"200х18.2",IF(C51=18.4,"225х20.5",IF(C51=20.46,"250х22.7",IF(С19=25.78,"315х28.6","Далее нет. Переходите на сталь"))))))))))))))))) -> 50х4.6 | E51: ='Расчёт расхода'!G46 -> 13.68633333 | G51: 36.7 | K51: 3.67 | M51: 40.37 | O51: 2.510768873 | Q51: 101.3597394 | S51: 1131.275417 | U51: 8482.076331 | V51: 0.0001715686275 | W51: 4.429486265 | X51: 14.8
A52: 204 | C52: 3.26 | D52: =IF(C52=1.4,"20х3",IF(C52=1.9,"25х3",IF(C52=2.6,"32х3",IF(C52=3.26,"40х3.7",IF(C52=4.08,"50х4.6",IF(C52=5.14,"63х5.8",IF(C52=6.14,"75х6.8",IF(C52=7.36,"90х8.2",IF(C52=9,"110х10",IF(C52=10.22,"125х11.4",IF(C52=11.46,"140х12.7",IF(C52=13.08,"160х14.6",IF(C52=14.72,"180х16.4",IF(C52=16.36,"200х18.2",IF(C52=18.4,"225х20.5",IF(C52=20.46,"250х22.7",IF(С19=25.78,"315х28.6","Далее нет. Переходите на сталь"))))))))))))))))) -> 40х3.7 | E52: ='Расчёт расхода'!G47 -> 7.828333333 | G52: 17.8 | K52: 1.78 | M52: 19.58 | O52: 2.740569686 | Q52: 53.66035445 | S52: 1077.615062 | U52: 6071.932515 | V52: 0.0002147239264 | W52: 3.605519535 | X52: 14.8
A53: ='Расчёт расхода'!A48 -> 301 | C53: 5.14 | D53: =IF(C53=1.4,"20х3",IF(C53=1.9,"25х3",IF(C53=2.6,"32х3",IF(C53=3.26,"40х3.7",IF(C53=4.08,"50х4.6",IF(C53=5.14,"63х5.8",IF(C53=6.14,"75х6.8",IF(C53=7.36,"90х8.2",IF(C53=9,"110х10",IF(C53=10.22,"125х11.4",IF(C53=11.46,"140х12.7",IF(C53=13.08,"160х14.6",IF(C53=14.72,"180х16.4",IF(C53=16.36,"200х18.2",IF(C53=18.4,"225х20.5",IF(C53=20.46,"250х22.7",IF(С19=25.78,"315х28.6","Далее нет. Переходите на сталь"))))))))))))))))) -> 63х5.8 | E53: ='Расчёт расхода'!G48 -> 26.91316364 | G53: 35.5 | K53: 3.55 | M53: 39.05 | O53: 2.740599692 | Q53: 107.020418 | S53: =S26-Q53 -> 2054.438663 | U53: 13239.66082 | V53: 0.0001361867704 | W53: =(626*0.0446*$E$1*E53^1.75*$Q$4/1200)^(1/4.75) -> 5.698303414 | X53: 14.8
A54: ='Расчёт расхода'!A49 -> 302 | C54: 5.14 | D54: =IF(C54=1.4,"20х3",IF(C54=1.9,"25х3",IF(C54=2.6,"32х3",IF(C54=3.26,"40х3.7",IF(C54=4.08,"50х4.6",IF(C54=5.14,"63х5.8",IF(C54=6.14,"75х6.8",IF(C54=7.36,"90х8.2",IF(C54=9,"110х10",IF(C54=10.22,"125х11.4",IF(C54=11.46,"140х12.7",IF(C54=13.08,"160х14.6",IF(C54=14.72,"180х16.4",IF(C54=16.36,"200х18.2",IF(C54=18.4,"225х20.5",IF(C54=20.46,"250х22.7",IF(С19=25.78,"315х28.6","Далее нет. Переходите на сталь"))))))))))))))))) -> 63х5.8 | E54: ='Расчёт расхода'!G49 -> 22.66090909 | G54: 14.9 | K54: =IF(A54=0,0,IF($U54<=2000,64/$U54,IF($U54<=4000,0.0025*$U54^0.333,IF(AND($U54<=100000,$V54>=23),0.11*($C$1/C54+68/$U54)^0.25,IF(AND($U54<=100000,$V54<23),0.3164/$U54^0.25,IF(AND($U54>100000,$V54>=23),0.11*($C$1/$C54+68/$U54)^0.25,IF(AND($U54>100000,$V54<23),1/(1.82*LOG10($U54)-1.64)^2,"нарушены условия ")))))))^-1*C54*I54/100+IF(I54=0,IF(B54="м",0.1*G54,IF(B54="с",0.2*G54,IF(AND(B54="п",G54<=3),G54*4.5,IF(AND(B54="п",G54<=4),G54*3,IF(AND(B54="п",G54<=7),G54*1.2,IF(AND(B54="п",G54<=12),G54*0.5,0))))))) -> 1.49 | M54: =IF(I54=0,G54+K54,G54+I54*K54) -> 16.39 | O54: =IF(AND(C54=0,E54=0),0,IF(U54>=2000,IF(U54>4000,69*($C$1/C54+1922*$G$1*C54/E54)^0.25*E54^2*$E$1/C54^5,0.516*E54^2.333*$E$1/C54^5.333/$G$1^0.333),1132000*E54*$G$1*$E$1/C54^4)) -> 2.026277114 | Q54: =M54*O54 -> 33.2106819 | S54: =IF(A54-A53=1,S53-Q54,Q54) -> 2021.227981 | U54: =0.0354*E54/C54/$G$1 -> 11147.80686 | V54: 0.0001361867704 | W54: =(626*0.0446*$E$1*E54^1.75*$Q$4/1200)^(1/4.75) -> 5.348464911 | X54: =IF(W54<=14.8,14.8,IF(W54<=20.5,20.5,IF(W54<=25.5,25.5,IF(W54<=30.5,30.5,6666)))) -> 14.8
A55: 303 | C55: 4.08 | D55: =IF(C55=1.4,"20х3",IF(C55=1.9,"25х3",IF(C55=2.6,"32х3",IF(C55=3.26,"40х3.7",IF(C55=4.08,"50х4.6",IF(C55=5.14,"63х5.8",IF(C55=6.14,"75х6.8",IF(C55=7.36,"90х8.2",IF(C55=9,"110х10",IF(C55=10.22,"125х11.4",IF(C55=11.46,"140х12.7",IF(C55=13.08,"160х14.6",IF(C55=14.72,"180х16.4",IF(C55=16.36,"200х18.2",IF(C55=18.4,"225х20.5",IF(C55=20.46,"250х22.7",IF(С19=25.78,"315х28.6","Далее нет. Переходите на сталь"))))))))))))))))) -> 50х4.6 | E55: ='Расчёт расхода'!G50 -> 18.45890909 | G55: 15 | K55: 1.5 | M55: 16.5 | O55: 4.24575369 | Q55: 70.05493588 | S55: 1951.173045 | U55: 11439.87013 | V55: 0.0001715686275 | W55: 4.959220399 | X55: 14.8
A56: 304 | C56: 4.08 | D56: =IF(C56=1.4,"20х3",IF(C56=1.9,"25х3",IF(C56=2.6,"32х3",IF(C56=3.26,"40х3.7",IF(C56=4.08,"50х4.6",IF(C56=5.14,"63х5.8",IF(C56=6.14,"75х6.8",IF(C56=7.36,"90х8.2",IF(C56=9,"110х10",IF(C56=10.22,"125х11.4",IF(C56=11.46,"140х12.7",IF(C56=13.08,"160х14.6",IF(C56=14.72,"180х16.4",IF(C56=16.36,"200х18.2",IF(C56=18.4,"225х20.5",IF(C56=20.46,"250х22.7",IF(С19=25.78,"315х28.6","Далее нет. Переходите на сталь"))))))))))))))))) -> 50х4.6 | E56: ='Расчёт расхода'!G51 -> 14.45145455 | G56: 15 | K56: 1.5 | M56: 16.5 | O56: 2.762336296 | Q56: 45.57854889 | S56: 1905.594496 | U56: 8956.258594 | V56: 0.0001715686275 | W56: 4.531607525 | X56: 14.8
A57: 305 | C57: 3.26 | D57: =IF(C57=1.4,"20х3",IF(C57=1.9,"25х3",IF(C57=2.6,"32х3",IF(C57=3.26,"40х3.7",IF(C57=4.08,"50х4.6",IF(C57=5.14,"63х5.8",IF(C57=6.14,"75х6.8",IF(C57=7.36,"90х8.2",IF(C57=9,"110х10",IF(C57=10.22,"125х11.4",IF(C57=11.46,"140х12.7",IF(C57=13.08,"160х14.6",IF(C57=14.72,"180х16.4",IF(C57=16.36,"200х18.2",IF(C57=18.4,"225х20.5",IF(C57=20.46,"250х22.7",IF(С19=25.78,"315х28.6","Далее нет. Переходите на сталь"))))))))))))))))) -> 40х3.7 | E57: ='Расчёт расхода'!G52 -> 10.11345455 | G57: 15 | K57: 1.5 | M57: 16.5 | O57: 4.296234691 | Q57: 70.88787241 | S57: 1834.706624 | U57: 7844.353438 | V57: 0.0002147239264 | W57: 3.973219813 | X57: 14.8
A58: 306 | C58: 2.6 | D58: =IF(C58=1.4,"20х3",IF(C58=1.9,"25х3",IF(C58=2.6,"32х3",IF(C58=3.26,"40х3.7",IF(C58=4.08,"50х4.6",IF(C58=5.14,"63х5.8",IF(C58=6.14,"75х6.8",IF(C58=7.36,"90х8.2",IF(C58=9,"110х10",IF(C58=10.22,"125х11.4",IF(C58=11.46,"140х12.7",IF(C58=13.08,"160х14.6",IF(C58=14.72,"180х16.4",IF(C58=16.36,"200х18.2",IF(C58=18.4,"225х20.5",IF(C58=20.46,"250х22.7",IF(С19=25.78,"315х28.6","Далее нет. Переходите на сталь"))))))))))))))))) -> 32х3 | E58: ='Расчёт расхода'!G53 -> 5.63 | G58: 16.5 | K58: 1.65 | M58: 18.15 | O58: 4.510615695 | Q58: 81.86767486 | S58: 1752.838949 | U58: 5475.32967 | V58: 0.0002692307692 | W58: 3.201986848 | X58: 14.8
A59: 401 | C59: 5.14 | D59: =IF(C59=1.4,"20х3",IF(C59=1.9,"25х3",IF(C59=2.6,"32х3",IF(C59=3.26,"40х3.7",IF(C59=4.08,"50х4.6",IF(C59=5.14,"63х5.8",IF(C59=6.14,"75х6.8",IF(C59=7.36,"90х8.2",IF(C59=9,"110х10",IF(C59=10.22,"125х11.4",IF(C59=11.46,"140х12.7",IF(C59=13.08,"160х14.6",IF(C59=14.72,"180х16.4",IF(C59=16.36,"200х18.2",IF(C59=18.4,"225х20.5",IF(C59=20.46,"250х22.7",IF(С19=25.78,"315х28.6","Далее нет. Переходите на сталь"))))))))))))))))) -> 63х5.8 | E59: ='Расчёт расхода'!G54 -> 30.88 | G59: 61 | K59: =IF(A59=0,0,IF($U59<=2000,64/$U59,IF($U59<=4000,0.0025*$U59^0.333,IF(AND($U59<=100000,$V59>=23),0.11*($C$1/C59+68/$U59)^0.25,IF(AND($U59<=100000,$V59<23),0.3164/$U59^0.25,IF(AND($U59>100000,$V59>=23),0.11*($C$1/$C59+68/$U59)^0.25,IF(AND($U59>100000,$V59<23),1/(1.82*LOG10($U59)-1.64)^2,"нарушены условия ")))))))^-1*C59*I59/100+IF(I59=0,IF(B59="м",0.1*G59,IF(B59="с",0.2*G59,IF(AND(B59="п",G59<=3),G59*4.5,IF(AND(B59="п",G59<=4),G59*3,IF(AND(B59="п",G59<=7),G59*1.2,IF(AND(B59="п",G59<=12),G59*0.5,0))))))) -> 6.1 | M59: =IF(I59=0,G59+K59,G59+I59*K59) -> 67.1 | O59: =IF(AND(C59=0,E59=0),0,IF(U59>=2000,IF(U59>4000,69*($C$1/C59+1922*$G$1*C59/E59)^0.25*E59^2*$E$1/C59^5,0.516*E59^2.333*$E$1/C59^5.333/$G$1^0.333),1132000*E59*$G$1*$E$1/C59^4)) -> 3.489433349 | Q59: =M59*O59 -> 234.1409777 | S59: =S22-Q59 -> 2160.111882 | U59: =0.0354*E59/C59/$G$1 -> 15191.10617 | V59: =$C$1/C59 -> 0.0001361867704 | W59: =(626*0.0446*$E$1*E59^1.75*$Q$5/1200)^(1/4.75) -> 5.668085465 | X59: =IF(W59<=14.8,14.8,IF(W59<=20.5,20.5,IF(W59<=25.5,25.5,IF(W59<=30.5,30.5,6666)))) -> 14.8
A60: 402 | C60: 3.26 | D60: =IF(C60=1.4,"20х3",IF(C60=1.9,"25х3",IF(C60=2.6,"32х3",IF(C60=3.26,"40х3.7",IF(C60=4.08,"50х4.6",IF(C60=5.14,"63х5.8",IF(C60=6.14,"75х6.8",IF(C60=7.36,"90х8.2",IF(C60=9,"110х10",IF(C60=10.22,"125х11.4",IF(C60=11.46,"140х12.7",IF(C60=13.08,"160х14.6",IF(C60=14.72,"180х16.4",IF(C60=16.36,"200х18.2",IF(C60=18.4,"225х20.5",IF(C60=20.46,"250х22.7",IF(С19=25.78,"315х28.6","Далее нет. Переходите на сталь"))))))))))))))))) -> 40х3.7 | E60: ='Расчёт расхода'!G55 -> 10.99 | G60: 52.3 | K60: 5.23 | M60: 57.53 | O60: 4.971493561 | Q60: 286.0100245 | S60: =IF(A60-A59=1,S59-Q60,Q60) -> 1874.101857 | U60: 8524.233129 | V60: 0.0002147239264 | W60: =(626*0.0446*$E$1*E60^1.75*$Q$5/1200)^(1/4.75) -> 3.873765971 | X60: 14.8

Sheet Модуль1 (hidden)
